{"text_format":"1","workbook":"xlsx","n_sheets":4,"sheets":["Applicant Rating Form","Factors","Zip Codes","Sheet1"],"not_rendered":{"charts":0,"images":29,"macros":1,"external_links":2,"defined_names":7,"comments":0,"pivot_tables":0},"unopened":[],"bounds":{"document_bytes":16777216,"sheet_cells":100000,"rows_first":2000,"rows_last":500,"rows_between":2000,"halvings":0,"cell_chars":16384,"cell_head_chars":4096},"cells_cut":0,"cells_raw":0,"read":"whole","date_system":"1900"}

{"sheet":"Applicant Rating Form","index":0,"n_rows":118,"n_cols":45,"rows_kept":118,"cut":false,"hidden":false,"merged":[[4,46,6,49],[4,11,4,33],[7,46,9,49],[9,2,9,32],[19,32,20,32],[13,2,13,32],[10,1,10,33],[11,2,11,32],[19,31,20,31],[2,16,2,31],[27,19,27,23],[98,2,98,32],[58,31,62,31],[83,31,86,31],[83,32,86,32],[58,32,62,32],[70,31,73,31],[70,32,73,32],[76,31,81,31],[76,32,81,32],[18,2,20,11],[51,4,51,29],[43,4,43,29],[22,4,22,29],[50,24,50,29],[52,41,56,41],[67,31,68,31],[67,32,68,32],[43,35,43,36],[22,32,34,32],[42,32,47,32],[42,31,47,31],[22,31,34,31]]}
[]
[]
[null,"Enter Development Name:"]
[]
[]
[null,null,null,null,null,null,null,"MISSISSIPPI HOME CORPORATION"]
[null,null,null,null,null,null,null,"Housing Tax Credit Program"]
[]
[]
[]
[null," APPLICANT RATING FORM"]
[null,null,{"$f":"IF(Q3=\"\",\"\",Q3)","v":""}]
[]
[null,null,"Applicants must meet the MINIMUM THRESHOLD REQUIREMENTS (as identified in Section 4 of the QAP) using the selection criteria below in order to receive further consideration for tax credits.  Applicants must adhere to the guidelines outlined in the Selection Criteria (Addendum A).  Points will not be awarded if sufficient supporting documentation is not provided with the application.  "]
[]
[null,null,null,null,null,null,null,null,null,null,null,null,null,null,null,null,null,null,null,null,null,null,null,null,null,null,null,null,null,null,null,null,{"$f":"IF(O3=\"\",\"\",O3)","v":""}]
[null,null,null,null,null,null,null,null,null,null,null,null,null,null,null,null,null,null,null,null,null,null,null,null,null,null,null,null,null,null,null,"SELF SCORE:",{"$f":"AG97","v":0}]
[]
[null,null,"SELECTION CRITERIA"]
[null,null,null,null,null,null,null,null,null,null,null,null,null,null,null,null,null,null,null,null,null,null,null,null,null,null,null,null,null,null,null,"Max Points","Self-Score"]
[]
[null,null,"SITE LOCATION",null,null,null,null,null,null,null,null,null,null,null,null,null,null,null,null,null,null,null,null,null,null,null,null,null,null,null,null,10,{"$f":"MIN(10,SUM(AG23:AG35))","v":0}]
[null,null,null,null,null,null,null,null,null,null,null,null,null,null,null,null,null,null,null,null,null,null,null,null,null,null,null,null,null,null,null,10,{"$f":"IF(AM35>10,10,AM35)","v":0}]
[null,null,"1.",null,"CONTRIBUTES to a CONCERTED REVITALIZATION PLAN ",null,null,null,null,null,null,null,null,null,null,null,null,null,null,null,null,null,null,null,null,null,null,null,null,null,null,null,null,null,null,{"$f":"IF(E25=TRUE,5,0)","v":0}]
[null,null,null,null,false,null,"The development contributes to a Concerted Revitalization Plan.  (5 pts.)"]
[]
[null,null,"2.",null,"QUALIFIED ZIP CODES",null,null,null,null,null,null,null,null,null,null,null,null,null,null,null,null,null,null,null,{"$f":"IF(Y28=\"Error\",\"Contact MHC\",\"\")","v":""},null,null,null,null,null,null,null,null,null,null,{"$f":"IF(E28=TRUE,(IF(Y28=\"Yes\",5,0)),0)","v":0}]
[null,null,null,null,false,null,"Select zip code for the development:",null,null,null,null,null,null,null,null,400,null,null,null,"Qualified Zip Code?",null,null,null,null,{"$f":"VLOOKUP(P28,'Zip Codes'!A6:F513,5)","v":"Yes"},null,"(5 pts)"]
[]
[null,null,"3.",null,"HIGH OPPORTUNITY AREA",null,null,null,null,null,null,null,null,null,null,null,null,null,null,null,null,null,null,null,null,null,null,null,null,null,null,null,null,null,null,{"$f":"IF(E31=TRUE,10,0)","v":0}]
[null,null,null,null,false,null,"Development is located within a high opportunity tract.   (10 pts.)"]
[]
[null,null,4,null,"BUSINESS DEVELOPMENT AREA",null,null,null,null,null,null,null,null,null,null,null,null,null,null,null,null,null,null,null,null,null,null,null,null,null,null,null,null,null,null,{"$f":"IF(E34=TRUE,10,0)","v":0}]
[null,null,null,null,false,null,"Development is located within a business development area.   (10 pts.)"]
[null,null,null,null,null,null,null,null,null,null,null,null,null,null,null,null,null,null,null,null,null,null,null,null,null,null,null,null,null,null,null,null,null,null,null,null,{"$f":"IF(AJ35>15,15,AJ35)","v":0},null,{"$f":"AJ24+AJ27+AJ30+AJ35+AJ33","v":0}]
[null,null,"DEVELOPMENT CHARACTERISTICS",null,null,null,null,null,null,null,null,null,null,null,null,null,null,null,null,null,null,null,null,null,null,null,null,null,null,null,null,52,{"$f":"AG38+AG43+AG51+AG59","v":0}]
[]
[null,null,5,null," BUILDING STANDARDS",null,null,null,null,null,null,null,null,null,null,null,null,null,{"$f":"IF(AM39>1,\"ERROR:  CHOOSE ONLY ONE BUILDING STANDARD\",\"\")","v":""},null,null,null,null,null,null,null,null,null,null,null,null,7,{"$f":"IF(E39=TRUE,AJ39,(IF(E40=TRUE,7,(IF(E42=TRUE,7,0)))))","v":0}]
[null,null,null,null,false,null,"Development will be built/rehabbed to meet the National Green Building Standard (Silver Level).",null,null,null,null,null,null,null,null,null,null,null,null,null,null,null,null,null,null,null,null,null,null,null,null,null,null,null,null,{"$f":"IF(E39=TRUE,7,0)","v":0},{"$f":"IF(E39=TRUE,1,0)","v":0},null,{"$f":"SUM(AK39:AK41)","v":0}]
[null,null,null,null,false,null,"Development will be built/rehabbed to meet the standard of the Enterprise Green Communities (EGC).",null,null,null,null,null,null,null,null,null,null,null,null,null,null,null,null,null,null,null,null,null,null,null,null,null,null,null,null,{"$f":"IF(E40=TRUE,7,0)","v":0},{"$f":"IF(E40=TRUE,1,0)","v":0}]
[null,null,null,null,null,null,"Development will be built/rehabbed to meet the FORTIFIED Multifamily Standard (Gold).",null,null,null,null,null,null,null,null,null,null,null,null,null,null,null,null,null,null,null,null,null,null,null,null,null,null,null,null,{"$f":"IF(E42=TRUE,7,0)","v":0},{"$f":"IF(E42=TRUE,1,0)","v":0}]
[null,null,null,null,false]
[null,null,6,null,"DEVELOPMENT AMENITIES ",null,null,null,null,null,null,null,null,null,null,null,null,null,null,null,null,null,null,null,null,null,null,null,null,null,null,10,{"$f":"IF(AR49>10,10,AR49)","v":0}]
[null,null,null,null,"Developments will be awarded points (as stated below) per development amenity up to a maximum of ten (10) points.  Amenities must be appropriate to the proposed tenant population.  Applicants mut adhere to all amenities selected, regardless of whether or not points are awarded.",null,null,null,null,null,null,null,null,null,null,null,null,null,null,null,null,null,null,null,null,null,null,null,null,null,null,null,null,null,null,"Amenities Selected"]
[null,null,null,null,false,null,"Advanced Community Services/Classes (2 pts)",null,null,null,null,null,null,null,null,null,null,false,"Fencing (2 pts)",null,null,null,null,false,"        Basketball, Volleyball, or Tennis Court",null,null,null,null,null,null,null,null,null,null,{"$f":"IF(E45=TRUE,2,0)","v":0},{"$f":"IF(R45=TRUE,2,0)","v":0},null,{"$f":"IF(X45=TRUE,2,0)","v":0},{"$f":"IF(X50=TRUE,2,0)","v":0}]
[null,null,null,null,false,null,"Neighborhood Services (2 pts)",null,null,null,null,null,null,null,null,null,null,false,"Exterior Security (2 pts)",null,null,null,null,false,"        Landscaped area/Gazebo/Sitting Area",null,null,null,null,null,null,null,null,null,null,0,{"$f":"IF(R46=TRUE,2,0)","v":0},null,{"$f":"IF(X46=TRUE,2,0)","v":0},{"$f":"IF(X51=TRUE,2,0)","v":0}]
[null,null,null,null,false,null,"Clubhouse/Community Building (2 pts)",null,null,null,null,null,null,null,null,null,null,false,"Fitness Center (2 pts)",null,null,null,null,false,"        Service Coordinator:",null,null,null,null,null,null,null,null,null,null,0,{"$f":"IF(R47=TRUE,2,0)","v":0},null,{"$f":"IF(Y48=1,6,0)","v":6}]
[null,null,null,null,false,null,"On-site Business Center (2 pts)",null,null,null,null,null,null,null,null,null,null,false,"On-site Laundry Facility (2 pts)",null,null,null,null,null,1,"Full-Time (6 pts)",null,null,null,null,null,null,null,null,null,0,{"$f":"IF(R48=TRUE,2,0)","v":0},null,{"$f":"IF(Y48=2,3,0)","v":0}]
[null,null,null,null,false,null,"Playground (2 pts)",null,null,null,null,null,null,null,null,null,null,false,"Walking/Jogging/Biking Trail (2 pts)",null,null,null,null,null,null,"Part-Time (3 pts)",null,null,null,null,null,null,null,null,null,0,{"$f":"IF(R49=TRUE,2,0)","v":0},null,{"$f":"IF(Y48=2,0,0)","v":0},{"$f":"IF(X47=TRUE,(IF(AM50>0,AM50,0)),0)","v":0},null,null,null,{"$f":"AJ45+AJ46+AJ47+AJ48+AJ49+AK45+AK46+AM45+AM46+AK47+AK48+AK49+AN49+AJ50+AK50+AN45+AN46","v":0}]
[null,null,null,null,false,null,"Development Wi-Fi (2 pts)",null,null,null,null,null,null,null,null,null,null,false,"Experienced Service Provider (6 pts)",null,null,null,null,false,"       Multi-Purpose Bus Stop Structure (2 pts)",null,null,null,null,null,null,null,null,null,null,0,{"$f":"IF(R50=TRUE,6,0)","v":0},null,{"$f":"AM47+AM48+AM49","v":6}]
[null,null,7,null,"UNIT AMENITIES ",null,null,null,null,null,null,null,null,null,null,null,null,null,null,null,null,null,null,false,"       MDOT Ride Share Availability",null,null,null,null,null,null,10,{"$f":"IF(AM57>10,10,AM57)","v":0}]
[null,null,null,null,"Developments will be awarded points based on the type of unit amenities to be offered up to a maximum of ten (10) points. Amenities must be appropriate to the proposed tenant population.  Applicants must adhere to all amenities selected, regardless of whether or not points are awarded."]
[null,null,null,null,"one-point amenities",null,null,null,null,null,null,null,null,null,null,null,"two-point amenities",null,null,null,null,null,null,null,null,null,"three-point amenities"]
[null,null,null,null,false,null,"Patios",null,null,null,null,null,null,null,null,null,false,"Washer/Dryers in each Unit",null,null,null,null,null,null,null,null,false,"Indoor Security System",null,null,null,null,null,null,null,{"$f":"IF(E54=TRUE,1,0)","v":0},{"$f":"IF(Q54=TRUE,2,0)","v":0},{"$f":"IF(AA54=TRUE,3,0)","v":0}]
[null,null,null,null,false,null,"Outside Storage Lockers",null,null,null,null,null,null,null,null,null,false,"Tankless water heaters",null,null,null,null,null,null,null,null,false,"Storm Doors",null,null,null,null,null,null,null,{"$f":"IF(E55=TRUE,1,0)","v":0},{"$f":"IF(Q55=TRUE,2,0)","v":0},{"$f":"IF(AA55=TRUE,3,0)","v":0}]
[null,null,null,null,false,null,"Smart Thermostat",null,null,null,null,null,null,null,null,null,null,null,null,null,null,null,null,null,null,null,false,"Storm Shelter",null,null,null,null,null,null,null,{"$f":"IF(E56=TRUE,1,0)","v":0},null,{"$f":"IF(AA56=TRUE,3,0)","v":0}]
[null,null,null,null,null,null,null,null,null,null,null,null,null,null,null,null,null,null,null,null,null,null,null,null,null,null,false,"Smoke-Free Development",null,null,null,null,null,null,null,{"$f":"IF(E57=TRUE,1,0)","v":0},null,{"$f":"IF(AA57=TRUE,3,0)","v":0},{"$f":"AJ54+AJ55+AJ56+AK54+AK55+AK56+AK57+AL54+AL55+AL56+AL57+AJ57","v":0}]
[]
[null,null,8,null,"DEVELOPMENT TYPE",null,null,null,null,null,null,{"$f":"IF(AJ65>0,(IF(AN61>0,\"ERROR:  SELECT ONLY ONE TYPE.\",\"\")),\"\")","v":""},null,null,null,null,null,null,null,null,null,null,null,null,null,null,null,null,null,null,null,25,{"$f":"AL66","v":0}]
[null,null,null,null,false,null,"New Construction (10 pts.)"]
[null,null,null,null,"acquisition/rehabilitation",null,null,null,null,null,null,null,null,null,null,null,null,null,null,null,null,null,null,null,null,null,null,null,null,null,null,null,null,null,null,{"$f":"IF(E60=TRUE,10,0)","v":0},{"$f":"IF(AN61=1,(IF(AL61>0,AL61,0)),0)","v":0},{"$f":"VLOOKUP(P62,Factors!X4:Z7,3)","v":0},null,{"$f":"IF(E62=TRUE,1,0)","v":0}]
[null,null,null,null,false,null,"Substantial Rehabilitation (up to 15 pts.)",null,null,null,null,null,null,null,null,1,null,null,null,null,null,null,null,null,null,null,null,null,null,null,null,null,null,null,null,null,{"$f":"IF(E64=TRUE,10,0)","v":0}]
[null,null,null,null,null,null,null,null,null,null,null,null,null,null,null,2,null,null,null,null,{"$f":"IF(O63=TRUE,(IF(O64=TRUE,\"ERROR:  CANNOT SELECT HISTORIC AND PRESERVATION.\",\"\")),\"\")","v":""},null,null,null,null,null,null,null,null,null,null,null,null,null,null,null,{"$f":"IF(E65=TRUE,5,0)","v":0},{"$f":"AK62+AK63","v":0},{"$f":"IF(U63=\"\",(IF(AL63>10,10,AL63)),0)","v":0}]
[null,null,null,null,false,null,"Historic Developments  (10 pts.)"]
[null,null,null,null,false,null,"Preservation Developments  (5 pts.)",null,null,null,null,null,null,null,null,null,null,null,null,null,null,null,null,null,null,null,null,null,null,null,null,null,null,null,null,{"$f":"AJ61+AJ62","v":0},{"$f":"AK61+AM63","v":0},{"$f":"AJ61+AJ62+AJ63+AK61+AM63","v":0},{"$f":"IF(AL65>20,20,AL65)","v":0}]
[null,null,"HOUSING NEEDS CHARACTERISTICS",null,null,null,null,null,null,null,null,null,null,null,null,null,null,null,null,null,null,null,null,null,null,null,null,null,null,null,null,18,{"$f":"AG68+AG71","v":0},null,null,{"$f":"IF(AK65>0,0,AJ65)","v":0},{"$f":"IF(AJ65>0,0,AK65)","v":0},{"$f":"AJ66+AK66","v":0}]
[]
[null,null,9,null,"DEEPER TARGETING ",null,null,null,null,null,null,null,null,null,null,null,null,null,null,null,null,null,null,null,null,null,null,null,null,null,null,5,{"$f":"IF(L68=\"\",(IF(E69=TRUE,5,0)),0)","v":0}]
[null,null,null,null,false,true,"In addition to the minimum set-aside, the development will set-aside 15%/> of the units at 30% AMI.   (5 pts.)"]
[]
[null,null,10,null,"SPECIAL NEEDS HOUSING  (Select only one.)",null,null,null,null,null,null,null,null,null,null,null,{"$f":"IF(AN74>1,\"ERROR:  CHOOSE ONLY ONE SPECIAL NEEDS CATEGORY\",\"\")","v":""},null,null,null,null,null,null,null,null,null,null,null,null,null,null,13,{"$f":"IF(E72=TRUE,AJ72,(IF(E73=TRUE,13,(IF(E74=TRUE,10,0)))))","v":0},null,null,null,null,null,"If >1, error msg: (r83)",null,null,"eld",null,{"$f":"IF(E72=TRUE,(IF(#REF!=TRUE,\"error\",\"ok\")),\"\")","v":""},{"$f":"IF(AR71=\"ok\",1,0)","v":0}]
[null,null,null,null,false,null,"The development will target elderly tenants.  (10 pts.)",null,null,null,null,null,null,null,null,null,null,null,null,null,null,null,null,null,null,null,null,null,null,null,null,null,null,null,null,{"$f":"IF(E72=TRUE,10,0)","v":0},{"$f":"IF(E72=TRUE,1,0)","v":0},null,{"$f":"IF(E72=TRUE,1,0)","v":0},null,null,"vet",null,{"$f":"IF(E74=TRUE,(IF(#REF!=TRUE,\"error\",\"ok\")),\"\")","v":""},{"$f":"IF(AR72=\"ok\",1,0)","v":0}]
[null,null,null,null,false,null,"The development will set aside a minimum of 7% of its units for persons targeted by MS Affirmative Olmstead Initiative (MAOI).   (13 pts.)",null,null,null,null,null,null,null,null,null,null,null,null,null,null,null,null,null,null,null,null,null,null,null,null,null,null,null,null,{"$f":"IF(E73=TRUE,13,0)","v":0},{"$f":"IF(E74=TRUE,1,0)","v":0},null,{"$f":"IF(E73=TRUE,1,0)","v":0},null,null,"maoi",null,{"$f":"IF(E73=TRUE,(IF(#REF!=TRUE,\"error\",\"ok\")),\"\")","v":""},{"$f":"IF(AR73=\"ok\",1,0)","v":0}]
[null,null,null,null,false,null,"The development will set aside a minimum of 10% of its units for veterans.  (10 pts.)   ",null,null,null,null,null,null,null,null,null,null,null,null,null,null,null,null,null,null,null,null,null,null,null,null,null,null,null,null,{"$f":"IF(E74=TRUE,10,0)","v":0},null,null,{"$f":"IF(E74=TRUE,1,0)","v":0},{"$f":"AM72+AM73+AM74","v":0},null,null,null,null,{"$f":"SUM(AS71:AS73)","v":0}]
[null,null,"DEVELOPMENT TEAM CHARACTERISTICS ",null,null,null,null,null,null,null,null,null,null,null,null,null,null,null,null,null,null,null,null,null,null,null,null,null,null,null,null,33,{"$f":"SUM(AG77:AG87)","v":0},null,null,{"$f":"+AJ73+AJ74+AJ72","v":0}]
[]
[null,null,11,null,"DEVELOPMENT EXPERIENCE  ",null,null,null,null,null,null,null,null,null,null,null,null,null,null,null,null,null,null,null,null,null,null,null,null,null,null,13,{"$f":"IF(AL82=FALSE,0,AL82)","v":0}]
[]
[null,null,null,null,false,null,"Select the number of developments that Placed in Service between 2014 and 2023 by a qualified principal:",null,null,null,null,null,null,null,null,null,null,null,null,null,null,null,null,null,null,null,null,null,null,null,null,null,null,null,null,{"$f":"VLOOKUP(G80,Factors!T3:V8,3)","v":0},{"$f":"IF(AJ79>0,1,0)","v":0},{"$f":"IF(E79=TRUE,1,0)","v":0}]
[null,null,null,null,null,null,1]
[]
[null,null,null,null,false,null,"At least one qualified development located in MS Placed in Service between 2014 and 2023.  (3 pts.)",null,null,null,null,null,null,null,null,null,null,null,null,null,null,null,null,null,null,null,null,null,null,null,null,null,null,null,null,{"$f":"IF(E82=TRUE,3,0)","v":0},{"$f":"AJ79+AJ82","v":0},{"$f":"IF(AK79=1,(IF(AL79=1,AK82)),0)","v":0}]
[]
[null,null,12,null,"MANAGEMENT EXPERIENCE",null,null,null,null,null,null,null,null,null,null,null,null,null,null,null,null,null,null,null,null,null,null,null,null,null,null,20,{"$f":"AK87","v":0}]
[null,null,null,null,false,null,"The management company currently manages at least one HTC property that PIS prior to January 1, 2021.   (10 pts.)",null,null,null,null,null,null,null,null,null,null,null,null,null,null,null,null,null,null,null,null,null,null,null,null,null,null,null,null,{"$f":"IF(E85=TRUE,10,\"\")","v":""}]
[null,null,null,null,false,null,"At least one of the qualified developments is located in Mississippi.  (5 pts.)",null,null,null,null,null,null,null,null,null,null,null,null,null,null,null,null,null,null,null,null,null,null,null,null,null,null,null,null,{"$f":"IF(E86=TRUE,5,\"\")","v":""}]
[null,null,null,null,false,null,"The contact person of the management company has a HCCP, C3P, or SHCM certification.   (5 pts.)",null,null,null,null,null,null,null,null,null,null,null,null,null,null,null,null,null,null,null,null,null,null,null,null,null,null,null,null,{"$f":"IF(E87=TRUE,5,\"\")","v":""},{"$f":"SUM(AJ85:AJ87)","v":0}]
[]
[null,null,"MAXIMUM CONSTRUCTION COSTS (MCC)",null,null,null,null,null,null,null,null,null,null,null,null,null,null,null,null,null,null,null,null,null,null,null,null,null,null,null,null,5,{"$f":"SUM(AG91:AG95)","v":0}]
[]
[null,null,13,null,"MAXIMUM CONSTRUCTION COST LIMITS (Select only one.)",null,null,null,null,null,null,null,null,null,null,null,null,null,null,{"$f":"IF(E93=TRUE,(IF(E95=TRUE,\"ERROR:  CHOOSE ONLY ONE.\",\"\")),\"\")","v":""},null,null,null,null,null,null,null,null,null,null,null,5,{"$f":"AJ96","v":0}]
[]
[null,null,null,null,false,null,"The development's maximum construction cost is less than the allowed MCC limit per unit.   (5 pts.)",null,null,null,null,null,null,null,null,null,null,null,null,null,null,null,null,null,null,null,null,null,null,null,null,null,null,null,null,{"$f":"IF(E93=TRUE,5,0)","v":0}]
[]
[null,null,null,null,false,null,"The development's maximum construction cost is more than 10% over the allowed MCC limit per unit.   (-5 pts.)",null,null,null,null,null,null,null,null,null,null,null,null,null,null,null,null,null,null,null,null,null,null,null,null,null,null,null,null,{"$f":"IF(E95=TRUE,-5,0)","v":0}]
[null,null,null,null,null,null,null,null,null,null,null,null,null,null,null,null,null,null,null,null,null,null,null,null,null,null,null,null,null,null,null,null,null,null,null,{"$f":"SUM(AJ93:AJ95)","v":0}]
[null,null,"TOTAL POINTS SCORED:",null,null,null,null,null,null,null,null,null,null,null,null,null,null,null,null,null,null,null,null,null,null,null,null,null,null,null,null,{"$f":"AF22+AF36+AF66+AF75+AF89","v":118},{"$f":"AG89+AG75+AG66+AG36+AG22","v":0}]
[]
[null,null,"POINT DEDUCTIONS"]
[null,null,"Please note that a development's points may be reduced during the application review process for any of the following reasons:"]
[]
[null,null,null,null,1,null,"Over Concentration  (-5 pts.)"]
[]
[null,null,null,null,2,null,"Threshold Deficiencies  (-2 pts each)   "]
[]
[]
[null,null,null,null,4,null,"Failure to highlight the amenities on the plans/drawings and Physical Needs Assessment.  (-1 pt.)"]
[]
[null,null,null,null,5,null,"Failure to label/identify \"Other Attachments\" on the Table of Contents.  (-1 pt. each)"]
[]
[null,null,null,null,6,null,"Failure to include any addendums or exhibits to site control documents.  (-1 pt each)"]
[]
[null,null,null,null,7,null,"Missing/Incomplete Required Documents Item.  (-1 pt each)"]
[]
[null,null,null,null,8,null,"Failure to include required copies of documents in the Table of Contents.  (-1 pt each)"]
[]
[null,null,null,null,9,null,"The development has a major noncompliance issue that occurred prior to January 1, 2024 that was corrected after December 31, 2023.  (-5 pts.)"]
[null,null,null,null,10,null,"Documents uploaded to incorrect sections. (-1 pt. each)"]

{"sheet":"Factors","index":1,"n_rows":322,"n_cols":34,"rows_kept":322,"cut":false,"hidden":true,"merged":[]}
[null,null,null,"Counties",null,"DDA","Over Concentrated Zip Codes"]
[null,"Compliance Period",1,null,null,null,1,null,0,null,null,"ZIP","Pts","PO_NAME","State","ST","Population_2010"]
[null,10,2,"ADAMS",1,"x",2,38801,-5,null,1,null,0,null,null,null,null,null,null,1,null,null,null,null,"Substantial Rehab",null,null,null,"NGBS",null,null,null,"Blight Options"]
[null,11,3,"ALCORN",1,null,null,null,-5,null,{"$f":"K3+1","v":2},38601,5,"Abbeville","Mississippi","MS",2062,null,null,2,"one development",2,null,1,null,0,null,1,null,0,null,1,null,0]
[null,12,4,"AMITE",2,"x",null,null,-5,null,{"$f":"K4+1","v":3},38603,5,"Ashland","Mississippi","MS",12585,null,null,3,"two developments",4,null,2,"Rehab Costs between $15,000 and $24,999 per unit (5 pts)",5,null,2,"Bronze Level (0 pts)",0,null,2,"The proposed site has one or more blighted substantial buildings.",10]
[null,13,5,"ATTALA",5,"x",null,null,null,null,4,38610,5,"Blue Mountain","Mississippi","MS",4886,null,null,4,"three developments",6,null,3,"Rehab Costs between $25,000 and $34,999 per unit (10 pts)",10,null,3,"Silver Level (7 pts)",7,null,3,"The proposed site consists of a neighborhood with at least four commercial/residential blighted buildings.",10]
[null,14,6,"BENTON",5,"x",null,null,null,null,5,38611,5,"Byhalia","Mississippi","MS",525,null,null,5,"four developments",8,null,4,"Rehab Costs of >/= $35,000 per unit (15 pts)",15,null,4,"Gold Level (10 pts)",10,null,4,"The proposed development consists of scattered sites with blighted structures on four or more individual parcels.",10]
[null,15,7,"BOLIVAR",3,"x",null,null,null,null,6,38617,5,"Coahoma","Mississippi","MS",12295,null,null,6,"five or more developments",10,null,null,null,null,null,null,null,null,null,5,"The proposed development blighted structures to be removed under MHC's Blight Elimination Program.",10]
[null,16,8,"CALHOUN",3,"x",null,null,null,null,7,38618,5,"Coldwater","Mississippi","MS",2263]
[null,17,9,"CARROLL",1,"x",null,null,null,null,8,38619,5,"Como","Mississippi","MS",3771]
[null,18,10,"CHICKASAW",2,"x",null,null,null,null,9,38620,5,"Courtland","Mississippi","MS",1387]
[null,19,11,"CHOCTAW",3,"x",null,null,null,null,10,38625,5,"Dumas","Mississippi","MS",8137]
[null,20,12,"CLAIBORNE",5,"x",null,null,null,null,11,38626,5,"Dundee","Mississippi","MS",639]
[null,21,13,"CLARKE",3,"x",null,null,null,null,12,38627,5,"Etta","Mississippi","MS",3868]
[null,22,14,"CLAY",4,"x",null,null,null,null,13,38629,5,"Falkner","Mississippi","MS",15513]
[null,23,15,"COAHOMA",3,"x",null,null,null,null,14,38632,5,"Hernando","Mississippi","MS",5887]
[null,24,16,"COPIAH",4,null,null,null,null,null,15,38633,5,"Hickory Flat","Mississippi","MS",2710]
[null,25,17,"COVINGTON",1,"x",null,null,null,null,16,38637,5,"Horn Lake","Mississippi","MS",5130]
[null,26,18,"DE SOTO",4,null,null,null,null,null,17,38641,5,"Lake Cormorant","Mississippi","MS",2515]
[null,27,19,"FORREST",1,null,null,null,null,null,18,38642,5,"Lamar","Mississippi","MS",6826]
[null,28,20,"FRANKLIN",3,"x",null,null,null,null,19,38643,5,"Lambert","Mississippi","MS",1243]
[null,29,21,"GEORGE",4,null,null,null,null,null,20,38645,5,"Lyon","Mississippi","MS",2268]
[null,30,22,"GREENE",5,"x",null,null,null,null,21,38646,5,"Marks","Mississippi","MS",3450]
[null,"Other",23,"GRENADA",2,"x",null,null,null,null,22,38647,5,"Michigan City","Mississippi","MS",145]
[null,null,24,"HANCOCK",1,"x",null,null,null,null,23,38650,5,"Myrtle","Mississippi","MS",426]
[null,null,25,"HARRISON",5,"x",null,null,null,null,24,38651,5,"Nesbit","Mississippi","MS",18385]
[null,null,26,"HINDS",1,null,null,null,null,null,25,38652,5,"New Albany","Mississippi","MS",2811]
[null,null,27,"HOLMES",5,"x",null,null,null,null,26,38654,5,"Olive Branch","Mississippi","MS",3610]
[null,null,28,"HUMPHREYS",3,"x",null,null,null,null,27,38655,5,"Oxford","Mississippi","MS",3749]
[null,null,29,"ISSAQUENA",1,"x",null,null,null,null,28,38658,5,"Pope","Mississippi","MS",6227]
[null,null,30,"ITAWAMBA",1,null,null,null,null,null,29,38659,5,"Potts Camp","Mississippi","MS",3469]
[null,null,31,"JACKSON",5,null,null,null,null,null,30,38661,5,"Red Banks","Mississippi","MS",18148]
[null,null,32,"JASPER",2,"x",null,null,null,null,31,38663,5,"Ripley","Mississippi","MS",1845]
[null,null,33,"JEFFERSON",3,"x",null,null,null,null,32,38664,5,"Robinsonville","Mississippi","MS",34126]
[null,null,34,"JEFFERSON DAVIS",4,"x",null,null,null,null,33,38665,5,"Sarah","Mississippi","MS",35697]
[null,null,35,"JONES",5,"x",null,null,null,null,34,38668,5,"Senatobia","Mississippi","MS",3392]
[null,null,36,"KEMPER",4,"x",null,null,null,null,35,38670,5,"Sledge","Mississippi","MS",23593]
[null,null,37,"LAFAYETTE",2,null,null,null,null,null,36,38671,5,"Southaven","Mississippi","MS",1737]
[null,null,38,"LAMAR",2,null,null,null,null,null,37,38672,5,"Southaven","Mississippi","MS",4221]
[null,null,39,"LAUDERDALE",1,"x",null,null,null,null,38,38673,5,"Taylor","Mississippi","MS",3849]
[null,null,40,"LAWRENCE",2,null,null,null,null,null,39,38674,5,"Tiplersville","Mississippi","MS",1964]
[null,null,41,"LEAKE",5,"x",null,null,null,null,40,38676,5,"Tunica","Mississippi","MS",1100]
[null,null,42,"LEE",1,null,null,null,null,null,41,38677,5,"University","Mississippi","MS",2642]
[null,null,43,"LEFLORE",4,"x",null,null,null,null,42,38680,5,"Walls","Mississippi","MS",17064]
[null,null,44,"LINCOLN",3,"x",null,null,null,null,43,38683,5,"Walnut","Mississippi","MS",11636]
[null,null,45,"LOWNDES",2,null,null,null,null,null,44,38685,5,"Waterford","Mississippi","MS",5383]
[null,null,46,"MADISON",1,null,null,null,null,null,45,38701,5,"Greenville","Mississippi","MS",4870]
[null,null,47,"MARION",3,"x",null,null,null,null,46,38703,5,"Greenville","Mississippi","MS",1318]
[null,null,48,"MARSHALL",4,null,null,null,null,null,47,38720,5,"Alligator","Mississippi","MS",16730]
[null,null,49,"MONROE",4,"x",null,null,null,null,48,38721,5,"Anguilla","Mississippi","MS",3393]
[null,null,50,"MONTGOMERY",3,"x",null,null,null,null,49,38725,5,"Benoit","Mississippi","MS",1430]
[null,null,51,"NESHOBA",1,"x",null,null,null,null,50,38726,5,"Beulah","Mississippi","MS",549]
[null,null,52,"NEWTON",1,"x",null,null,null,null,51,38730,5,"Boyle","Mississippi","MS",2030]
[null,null,53,"NOXUBEE",4,"x",null,null,null,null,52,38731,5,"Chatham","Mississippi","MS",1012]
[null,null,54,"OKTIBBEHA",4,"x",null,null,null,null,53,38733,5,"Cleveland","Mississippi","MS",3709]
[null,null,55,"PANOLA",2,"x",null,null,null,null,54,38736,5,"Doddsville","Mississippi","MS",5935]
[null,null,56,"PEARL RIVER",2,"x",null,null,null,null,55,38740,5,"Duncan","Mississippi","MS",148]
[null,null,57,"PERRY",4,null,null,null,null,null,56,38744,5,"Glen Allan","Mississippi","MS",1203]
[null,null,58,"PIKE",4,"x",null,null,null,null,57,38746,5,"Gunnison","Mississippi","MS",140]
[null,null,59,"PONTOTOC",2,null,null,null,null,null,58,38748,5,"Hollandale","Mississippi","MS",26022]
[null,null,60,"PRENTISS",4,"x",null,null,null,null,59,38751,5,"Indianola","Mississippi","MS",0]
[null,null,61,"QUITMAN",3,"x",null,null,null,null,60,38753,5,"Inverness","Mississippi","MS",2558]
[null,null,62,"RANKIN",3,null,null,null,null,null,61,38754,5,"Isola","Mississippi","MS",4102]
[null,null,63,"SCOTT",2,"x",null,null,null,null,62,38756,5,"Leland","Mississippi","MS",1647]
[null,null,64,"SHARKEY",1,"x",null,null,null,null,63,38759,5,"Merigold","Mississippi","MS",12199]
[null,null,65,"SIMPSON",1,null,null,null,null,null,64,38761,5,"Moorhead","Mississippi","MS",4888]
[null,null,66,"SMITH",2,"x",null,null,null,null,65,38762,5,"Mound Bayou","Mississippi","MS",17722]
[null,null,67,"STONE",1,"x",null,null,null,null,66,38771,5,"Ruleville","Mississippi","MS",13611]
[null,null,68,"SUNFLOWER",5,"x",null,null,null,null,{"$f":"K68+1","v":67},38773,5,"Shaw","Mississippi","MS",230]
[null,null,69,"TALLAHATCHIE",5,"x",null,null,null,null,68,38774,5,"Shelby","Mississippi","MS",4941]
[null,null,70,"TATE",2,null,null,null,null,null,69,38778,5,"Sunflower","Mississippi","MS",28377]
[null,null,71,"TIPPAH",4,"x",null,null,null,null,70,38780,5,"Wayside","Mississippi","MS",4386]
[null,null,72,"TISHOMINGO",4,"x",null,null,null,null,71,38804,5,"Tupelo","Mississippi","MS",2192]
[null,null,73,"TUNICA",3,"x",null,null,null,null,72,38821,5,"Amory","Mississippi","MS",2280]
[null,null,74,"UNION",1,"x",null,null,null,null,73,38824,5,"Baldwyn","Mississippi","MS",1013]
[null,null,75,"WALTHALL",5,"x",null,null,null,null,74,38826,5,"Belden","Mississippi","MS",899]
[null,null,76,"WARREN",3,"x",null,null,null,null,75,38827,5,"Belmont","Mississippi","MS",424]
[null,null,77,"WASHINGTON",5,"x",null,null,null,null,76,38828,5,"Blue Springs","Mississippi","MS",4716]
[null,null,78,"WAYNE",3,"x",null,null,null,null,77,38829,5,"Booneville","Mississippi","MS",4439]
[null,null,79,"WEBSTER",5,"x",null,null,null,null,78,38833,5,"Burnsville","Mississippi","MS",1533]
[null,null,80,"WILKINSON",5,"x",null,null,null,null,79,38838,5,"Dennis","Mississippi","MS",1753]
[null,null,81,"WINSTON",5,"x",null,null,null,null,80,38841,5,"Ecru","Mississippi","MS",7848]
[null,null,82,"YALOBUSHA",2,"x",null,null,null,null,81,38843,5,"Fulton","Mississippi","MS",2581]
[null,null,83,"YAZOO",2,"x",null,null,null,null,82,38844,5,"Gattman","Mississippi","MS",1332]
[null,null,null,null,{"$f":"COUNT(E3:E84)","v":82},null,null,null,null,null,83,38846,5,"Glen","Mississippi","MS",708]
[null,null,null,null,null,null,null,null,null,null,84,38847,5,"Golden","Mississippi","MS",1318]
[null,null,null,null,null,null,null,null,null,null,85,38848,5,"Greenwood Springs","Mississippi","MS",3879]
[null,null,null,null,null,null,null,null,null,null,86,38849,5,"Guntown","Mississippi","MS",4708]
[null,null,null,null,null,null,null,null,null,null,87,38850,5,"Houlka","Mississippi","MS",12638]
[null,null,null,null,null,null,null,null,null,null,88,38852,5,"Iuka","Mississippi","MS",1265]
[null,null,null,null,null,null,null,null,null,null,89,38855,5,"Mantachie","Mississippi","MS",2893]
[null,null,null,null,null,null,null,null,null,null,90,38856,5,"Marietta","Mississippi","MS",2056]
[null,null,null,null,null,null,null,null,null,null,91,38857,5,"Mooreville","Mississippi","MS",1017]
[null,null,null,null,null,null,null,null,null,null,92,38858,5,"Nettleton","Mississippi","MS",1498]
[null,null,null,null,null,null,null,null,null,null,93,38859,5,"New Site","Mississippi","MS",6712]
[null,null,null,null,null,null,null,null,null,null,94,38860,5,"Okolona","Mississippi","MS",20713]
[null,null,null,null,null,null,null,null,null,null,95,38863,5,"Pontotoc","Mississippi","MS",7486]
[null,null,null,null,null,null,null,null,null,null,96,38864,5,"Randolph","Mississippi","MS",14741]
[null,null,null,null,null,null,null,null,null,null,97,38865,5,"Rienzi","Mississippi","MS",5851]
[null,null,null,null,null,null,null,null,null,null,98,38866,5,"Saltillo","Mississippi","MS",1540]
[null,null,null,null,null,null,null,null,null,null,99,38868,5,"Shannon","Mississippi","MS",1199]
[null,null,null,null,null,null,null,null,null,null,100,38870,5,"Smithville","Mississippi","MS",11649]
[null,null,null,null,null,null,null,null,null,null,101,38871,5,"Thaxton","Mississippi","MS",307]
[null,null,null,null,null,null,null,null,null,null,102,38873,5,"Tishomingo","Mississippi","MS",995]
[null,null,null,null,null,null,null,null,null,null,103,38876,5,"Tremont","Mississippi","MS",2574]
[null,null,null,null,null,null,null,null,null,null,104,38878,5,"Vardaman","Mississippi","MS",409]
[null,null,null,null,null,null,null,null,null,null,105,38913,5,"Banner","Mississippi","MS",3372]
[null,null,null,null,null,null,null,null,null,null,106,38914,5,"Big Creek","Mississippi","MS",3401]
[null,null,null,null,null,null,null,null,null,null,107,38915,5,"Bruce","Mississippi","MS",1226]
[null,null,null,null,null,null,null,null,null,null,108,38916,5,"Calhoun City","Mississippi","MS",17521]
[null,null,null,null,null,null,null,null,null,null,109,38917,5,"Carrollton","Mississippi","MS",836]
[null,null,null,null,null,null,null,null,null,null,110,38920,5,"Cascilla","Mississippi","MS",988]
[null,null,null,null,null,null,null,null,null,null,111,38921,5,"Charleston","Mississippi","MS",5228]
[null,null,null,null,null,null,null,null,null,null,112,38922,5,"Coffeeville","Mississippi","MS",3296]
[null,null,null,null,null,null,null,null,null,null,113,38923,5,"Coila","Mississippi","MS",1203]
[null,null,null,null,null,null,null,null,null,null,114,38924,5,"Cruger","Mississippi","MS",36948]
[null,null,null,null,null,null,null,null,null,null,115,38925,5,"Duck Hill","Mississippi","MS",4262]
[null,null,null,null,null,null,null,null,null,null,116,38927,5,"Enid","Mississippi","MS",10911]
[null,null,null,null,null,null,null,null,null,null,117,38929,5,"Gore Springs","Mississippi","MS",2289]
[null,null,null,null,null,null,null,null,null,null,118,38930,5,"Greenwood","Mississippi","MS",25537]
[null,null,null,null,null,null,null,null,null,null,119,38940,5,"Holcomb","Mississippi","MS",1780]
[null,null,null,null,null,null,null,null,null,null,120,38941,5,"Itta Bena","Mississippi","MS",2360]
[null,null,null,null,null,null,null,null,null,null,121,38943,5,"MC Carley","Mississippi","MS",1853]
[null,null,null,null,null,null,null,null,null,null,122,38944,5,"Minter City","Mississippi","MS",5631]
[null,null,null,null,null,null,null,null,null,null,123,38948,5,"Oakland","Mississippi","MS",141]
[null,null,null,null,null,null,null,null,null,null,124,38949,5,"Paris","Mississippi","MS",16053]
[null,null,null,null,null,null,null,null,null,null,125,38950,5,"Philipp","Mississippi","MS",3364]
[null,null,null,null,null,null,null,null,null,null,126,38951,5,"Pittsboro","Mississippi","MS",1660]
[null,null,null,null,null,null,null,null,null,null,127,38952,5,"Schlater","Mississippi","MS",1428]
[null,null,null,null,null,null,null,null,null,null,128,38953,5,"Scobey","Mississippi","MS",6538]
[null,null,null,null,null,null,null,null,null,null,129,38954,5,"Sidon","Mississippi","MS",9246]
[null,null,null,null,null,null,null,null,null,null,130,38961,5,"Tillatoba","Mississippi","MS",1029]
[null,null,null,null,null,null,null,null,null,null,{"$f":"K132+1","v":131},38963,5,"Tutwiler","Mississippi","MS",703]
[null,null,null,null,null,null,null,null,null,null,132,38964,5,"Vance","Mississippi","MS",23550]
[null,null,null,null,null,null,null,null,null,null,133,38965,5,"Water Valley","Mississippi","MS",3695]
[null,null,null,null,null,null,null,null,null,null,134,38967,5,"Winona","Mississippi","MS",86]
[null,null,null,null,null,null,null,null,null,null,135,39039,5,"Benton","Mississippi","MS",4597]
[null,null,null,null,null,null,null,null,null,null,136,39040,5,"Bentonia","Mississippi","MS",2502]
[null,null,null,null,null,null,null,null,null,null,137,39041,5,"Bolton","Mississippi","MS",6597]
[null,null,null,null,null,null,null,null,null,null,138,39042,5,"Brandon","Mississippi","MS",1286]
[null,null,null,null,null,null,null,null,null,null,139,39044,5,"Braxton","Mississippi","MS",2871]
[null,null,null,null,null,null,null,null,null,null,140,39045,5,"Camden","Mississippi","MS",1985]
[null,null,null,null,null,null,null,null,null,null,141,39047,5,"Brandon","Mississippi","MS",2773]
[null,null,null,null,null,null,null,null,null,null,142,39051,5,"Carthage","Mississippi","MS",3231]
[null,null,null,null,null,null,null,null,null,null,143,39054,5,"Cary","Mississippi","MS",3263]
[null,null,null,null,null,null,null,null,null,null,144,39056,5,"Clinton","Mississippi","MS",23493]
[null,null,null,null,null,null,null,null,null,null,145,39057,5,"Conehatta","Mississippi","MS",931]
[null,null,null,null,null,null,null,null,null,null,146,39058,5,"Clinton","Mississippi","MS",7745]
[null,null,null,null,null,null,null,null,null,null,147,39066,5,"Edwards","Mississippi","MS",6899]
[null,null,null,null,null,null,null,null,null,null,148,39067,5,"Ethel","Mississippi","MS",4032]
[null,null,null,null,null,null,null,null,null,null,149,39073,5,"Florence","Mississippi","MS",7783]
[null,null,null,null,null,null,null,null,null,null,150,39078,5,"Georgetown","Mississippi","MS",5421]
[null,null,null,null,null,null,null,null,null,null,151,39082,5,"Harrisville","Mississippi","MS",1923]
[null,null,null,null,null,null,null,null,null,null,152,39086,5,"Hermanville","Mississippi","MS",17086]
[null,null,null,null,null,null,null,null,null,null,153,39090,5,"Kosciusko","Mississippi","MS",786]
[null,null,null,null,null,null,null,null,null,null,154,39092,5,"Lake","Mississippi","MS",2752]
[null,null,null,null,null,null,null,null,null,null,155,39094,5,"Lena","Mississippi","MS",1210]
[null,null,null,null,null,null,null,null,null,null,156,39095,5,"Lexington","Mississippi","MS",8719]
[null,null,null,null,null,null,null,null,null,null,157,39096,5,"Lorman","Mississippi","MS",1212]
[null,null,null,null,null,null,null,null,null,null,158,39097,5,"Louise","Mississippi","MS",1922]
[null,null,null,null,null,null,null,null,null,null,159,39108,5,"MC Cool","Mississippi","MS",6461]
[null,null,null,null,null,null,null,null,null,null,160,39110,5,"Madison","Mississippi","MS",36587]
[null,null,null,null,null,null,null,null,null,null,161,39111,5,"Magee","Mississippi","MS",8797]
[null,null,null,null,null,null,null,null,null,null,162,39113,5,"Mayersville","Mississippi","MS",4880]
[null,null,null,null,null,null,null,null,null,null,163,39114,5,"Mendenhall","Mississippi","MS",1772]
[null,null,null,null,null,null,null,null,null,null,164,39116,5,"Mize","Mississippi","MS",1489]
[null,null,null,null,null,null,null,null,null,null,165,39140,5,"Newhebron","Mississippi","MS",1457]
[null,null,null,null,null,null,null,null,null,null,166,39144,5,"Pattison","Mississippi","MS",3691]
[null,null,null,null,null,null,null,null,null,null,167,39145,5,"Pelahatchie","Mississippi","MS",2436]
[null,null,null,null,null,null,null,null,null,null,168,39149,5,"Pinola","Mississippi","MS",1610]
[null,null,null,null,null,null,null,null,null,null,169,39150,5,"Port Gibson","Mississippi","MS",1894]
[null,null,null,null,null,null,null,null,null,null,170,39152,5,"Pulaski","Mississippi","MS",1038]
[null,null,null,null,null,null,null,null,null,null,171,39153,5,"Raleigh","Mississippi","MS",1669]
[null,null,null,null,null,null,null,null,null,null,172,39154,5,"Raymond","Mississippi","MS",1591]
[null,null,null,null,null,null,null,null,null,null,173,39156,5,"Redwood","Mississippi","MS",1325]
[null,null,null,null,null,null,null,null,null,null,174,39157,5,"Ridgeland","Mississippi","MS",1732]
[null,null,null,null,null,null,null,null,null,null,175,39160,5,"Sallis","Mississippi","MS",10897]
[null,null,null,null,null,null,null,null,null,null,176,39162,5,"Satartia","Mississippi","MS",672]
[null,null,null,null,null,null,null,null,null,null,177,39166,5,"Silver City","Mississippi","MS",1061]
[null,null,null,null,null,null,null,null,null,null,178,39168,5,"Taylorsville","Mississippi","MS",1052]
[null,null,null,null,null,null,null,null,null,null,179,39169,5,"Tchula","Mississippi","MS",840]
[null,null,null,null,null,null,null,null,null,null,180,39170,5,"Terry","Mississippi","MS",1609]
[null,null,null,null,null,null,null,null,null,null,181,39175,5,"Utica","Mississippi","MS",2964]
[null,null,null,null,null,null,null,null,null,null,182,39176,5,"Vaiden","Mississippi","MS",4250]
[null,null,null,null,null,null,null,null,null,null,183,39177,5,"Valley Park","Mississippi","MS",2653]
[null,null,null,null,null,null,null,null,null,null,184,39179,5,"Vaughan","Mississippi","MS",2821]
[null,null,null,null,null,null,null,null,null,null,185,39189,5,"Walnut Grove","Mississippi","MS",9539]
[null,null,null,null,null,null,null,null,null,null,186,39191,5,"Wesson","Mississippi","MS",3375]
[null,null,null,null,null,null,null,null,null,null,187,39192,5,"West","Mississippi","MS",17039]
[null,null,null,null,null,null,null,null,null,null,188,39201,5,"Jackson","Mississippi","MS",14829]
[null,null,null,null,null,null,null,null,null,null,189,39203,5,"Jackson","Mississippi","MS",3796]
[null,null,null,null,null,null,null,null,null,null,190,39208,5,"Pearl","Mississippi","MS",4051]
[null,null,null,null,null,null,null,null,null,null,191,39210,5,"Jackson","Mississippi","MS",1094]
[null,null,null,null,null,null,null,null,null,null,192,39211,5,"Jackson","Mississippi","MS",6767]
[null,null,null,null,null,null,null,null,null,null,193,39212,5,"Jackson","Mississippi","MS",7084]
[null,null,null,null,null,null,null,null,null,null,194,39217,5,"Jackson","Mississippi","MS",16389]
[null,null,null,null,null,null,null,null,null,null,{"$f":"K196+1","v":195},39218,5,"Richland","Mississippi","MS",896]
[null,null,null,null,null,null,null,null,null,null,196,39232,5,"Flowood","Mississippi","MS",1658]
[null,null,null,null,null,null,null,null,null,null,197,39272,5,"Byram","Mississippi","MS",6514]
[null,null,null,null,null,null,null,null,null,null,198,39305,5,"Meridian","Mississippi","MS",392]
[null,null,null,null,null,null,null,null,null,null,199,39309,5,"Meridian","Mississippi","MS",1869]
[null,null,null,null,null,null,null,null,null,null,200,39320,5,"Bailey","Mississippi","MS",6275]
[null,null,null,null,null,null,null,null,null,null,201,39322,5,"Buckatunna","Mississippi","MS",47070]
[null,null,null,null,null,null,null,null,null,null,202,39323,5,"Chunky","Mississippi","MS",2313]
[null,null,null,null,null,null,null,null,null,null,203,39325,5,"Collinsville","Mississippi","MS",2262]
[null,null,null,null,null,null,null,null,null,null,204,39326,5,"Daleville","Mississippi","MS",32185]
[null,null,null,null,null,null,null,null,null,null,205,39327,5,"Decatur","Mississippi","MS",945]
[null,null,null,null,null,null,null,null,null,null,206,39328,5,"De Kalb","Mississippi","MS",308]
[null,null,null,null,null,null,null,null,null,null,207,39330,5,"Enterprise","Mississippi","MS",11222]
[null,null,null,null,null,null,null,null,null,null,208,39332,5,"Hickory","Mississippi","MS",962]
[null,null,null,null,null,null,null,null,null,null,209,39335,5,"Lauderdale","Mississippi","MS",532]
[null,null,null,null,null,null,null,null,null,null,210,39336,5,"Lawrence","Mississippi","MS",34389]
[null,null,null,null,null,null,null,null,null,null,211,39337,5,"Little Rock","Mississippi","MS",1344]
[null,null,null,null,null,null,null,null,null,null,212,39338,5,"Louin","Mississippi","MS",6394]
[null,null,null,null,null,null,null,null,null,null,213,39342,5,"Marion","Mississippi","MS",8320]
[null,null,null,null,null,null,null,null,null,null,214,39345,5,"Newton","Mississippi","MS",21696]
[null,null,null,null,null,null,null,null,null,null,215,39347,5,"Pachuta","Mississippi","MS",696]
[null,null,null,null,null,null,null,null,null,null,216,39348,5,"Paulding","Mississippi","MS",426]
[null,null,null,null,null,null,null,null,null,null,217,39352,5,"Porterville","Mississippi","MS",1947]
[null,null,null,null,null,null,null,null,null,null,218,39354,5,"Preston","Mississippi","MS",1234]
[null,null,null,null,null,null,null,null,null,null,219,39356,5,"Rose Hill","Mississippi","MS",2989]
[null,null,null,null,null,null,null,null,null,null,220,39358,5,"Scooba","Mississippi","MS",18805]
[null,null,null,null,null,null,null,null,null,null,221,39359,5,"Sebastopol","Mississippi","MS",2485]
[null,null,null,null,null,null,null,null,null,null,222,39360,5,"Shubuta","Mississippi","MS",13279]
[null,null,null,null,null,null,null,null,null,null,223,39362,5,"State Line","Mississippi","MS",8251]
[null,null,null,null,null,null,null,null,null,null,224,39363,5,"Stonewall","Mississippi","MS",901]
[null,null,null,null,null,null,null,null,null,null,225,39364,5,"Toomsuba","Mississippi","MS",2767]
[null,null,null,null,null,null,null,null,null,null,226,39366,5,"Vossburg","Mississippi","MS",580]
[null,null,null,null,null,null,null,null,null,null,227,39367,5,"Waynesboro","Mississippi","MS",7936]
[null,null,null,null,null,null,null,null,null,null,228,39406,5,"Hattiesburg","Mississippi","MS",2375]
[null,null,null,null,null,null,null,null,null,null,229,39421,5,"Bassfield","Mississippi","MS",580]
[null,null,null,null,null,null,null,null,null,null,230,39422,5,"Bay Springs","Mississippi","MS",10638]
[null,null,null,null,null,null,null,null,null,null,231,39425,5,"Brooklyn","Mississippi","MS",7819]
[null,null,null,null,null,null,null,null,null,null,232,39426,5,"Carriere","Mississippi","MS",8607]
[null,null,null,null,null,null,null,null,null,null,233,39427,5,"Carson","Mississippi","MS",1595]
[null,null,null,null,null,null,null,null,null,null,234,39429,5,"Columbia","Mississippi","MS",9840]
[null,null,null,null,null,null,null,null,null,null,235,39437,5,"Ellisville","Mississippi","MS",1702]
[null,null,null,null,null,null,null,null,null,null,236,39439,5,"Heidelberg","Mississippi","MS",288]
[null,null,null,null,null,null,null,null,null,null,237,39443,5,"Laurel","Mississippi","MS",7048]
[null,null,null,null,null,null,null,null,null,null,238,39452,5,"Lucedale","Mississippi","MS",7748]
[null,null,null,null,null,null,null,null,null,null,239,39456,5,"MC Lain","Mississippi","MS",26039]
[null,null,null,null,null,null,null,null,null,null,240,39459,5,"Moselle","Mississippi","MS",4820]
[null,null,null,null,null,null,null,null,null,null,241,39461,5,"Neely","Mississippi","MS",11259]
[null,null,null,null,null,null,null,null,null,null,242,39464,5,"Ovett","Mississippi","MS",2868]
[null,null,null,null,null,null,null,null,null,null,243,39465,5,"Petal","Mississippi","MS",1595]
[null,null,null,null,null,null,null,null,null,null,244,39466,5,"Picayune","Mississippi","MS",3574]
[null,null,null,null,null,null,null,null,null,null,245,39470,5,"Poplarville","Mississippi","MS",3162]
[null,null,null,null,null,null,null,null,null,null,246,39474,5,"Prentiss","Mississippi","MS",1299]
[null,null,null,null,null,null,null,null,null,null,247,39475,5,"Purvis","Mississippi","MS",2796]
[null,null,null,null,null,null,null,null,null,null,248,39476,5,"Richton","Mississippi","MS",10112]
[null,null,null,null,null,null,null,null,null,null,249,39478,5,"Sandy Hook","Mississippi","MS",1891]
[null,null,null,null,null,null,null,null,null,null,250,39479,5,"Seminary","Mississippi","MS",2569]
[null,null,null,null,null,null,null,null,null,null,251,39480,5,"Soso","Mississippi","MS",7349]
[null,null,null,null,null,null,null,null,null,null,252,39481,5,"Stringer","Mississippi","MS",542]
[null,null,null,null,null,null,null,null,null,null,253,39482,5,"Sumrall","Mississippi","MS",12946]
[null,null,null,null,null,null,null,null,null,null,254,39483,5,"Foxworth","Mississippi","MS",647]
[null,null,null,null,null,null,null,null,null,null,255,39503,5,"Gulfport","Mississippi","MS",541]
[null,null,null,null,null,null,null,null,null,null,256,39507,5,"Gulfport","Mississippi","MS",2149]
[null,null,null,null,null,null,null,null,null,null,257,39525,5,"Diamondhead","Mississippi","MS",212]
[null,null,null,null,null,null,null,null,null,null,258,39529,5,"Stennis Space Center","Mississippi","MS",6126]
[null,null,null,null,null,null,null,null,null,null,{"$f":"K260+1","v":259},39530,5,"Biloxi","Mississippi","MS",5510]
[null,null,null,null,null,null,null,null,null,null,260,39531,5,"Biloxi","Mississippi","MS",3719]
[null,null,null,null,null,null,null,null,null,null,261,39532,5,"Biloxi","Mississippi","MS",2781]
[null,null,null,null,null,null,null,null,null,null,262,39534,5,"Biloxi","Mississippi","MS",4135]
[null,null,null,null,null,null,null,null,null,null,263,39540,5,"Diberville","Mississippi","MS",2166]
[null,null,null,null,null,null,null,null,null,null,264,39553,5,"Gautier","Mississippi","MS",819]
[null,null,null,null,null,null,null,null,null,null,265,39556,5,"Kiln","Mississippi","MS",3191]
[null,null,null,null,null,null,null,null,null,null,266,39560,5,"Long Beach","Mississippi","MS",1527]
[null,null,null,null,null,null,null,null,null,null,267,39561,5,"MC Henry","Mississippi","MS",2197]
[null,null,null,null,null,null,null,null,null,null,268,39562,5,"Moss Point","Mississippi","MS",2813]
[null,null,null,null,null,null,null,null,null,null,269,39563,5,"Moss Point","Mississippi","MS",1709]
[null,null,null,null,null,null,null,null,null,null,270,39564,5,"Ocean Springs","Mississippi","MS",2657]
[null,null,null,null,null,null,null,null,null,null,271,39565,5,"Vancleave","Mississippi","MS",36870]
[null,null,null,null,null,null,null,null,null,null,272,39572,5,"Pearlington","Mississippi","MS",9486]
[null,null,null,null,null,null,null,null,null,null,273,39573,5,"Perkinston","Mississippi","MS",3028]
[null,null,null,null,null,null,null,null,null,null,274,39574,5,"Saucier","Mississippi","MS",2042]
[null,null,null,null,null,null,null,null,null,null,275,39581,5,"Pascagoula","Mississippi","MS",0]
[null,null,null,null,null,null,null,null,null,null,276,39601,5,"Brookhaven","Mississippi","MS",517]
[null,null,null,null,null,null,null,null,null,null,277,39629,5,"Bogue Chitto","Mississippi","MS",1789]
[null,null,null,null,null,null,null,null,null,null,278,39630,5,"Bude","Mississippi","MS",1740]
[null,null,null,null,null,null,null,null,null,null,279,39631,5,"Centreville","Mississippi","MS",1666]
[null,null,null,null,null,null,null,null,null,null,280,39633,5,"Crosby","Mississippi","MS",8980]
[null,null,null,null,null,null,null,null,null,null,281,39638,5,"Gloster","Mississippi","MS",8561]
[null,null,null,null,null,null,null,null,null,null,282,39641,5,"Jayess","Mississippi","MS",1744]
[null,null,null,null,null,null,null,null,null,null,283,39643,5,"Kokomo","Mississippi","MS",642]
[null,null,null,null,null,null,null,null,null,null,284,39645,5,"Liberty","Mississippi","MS",5043]
[null,null,null,null,null,null,null,null,null,null,285,39647,5,"MC Call Creek","Mississippi","MS",3286]
[null,null,null,null,null,null,null,null,null,null,286,39652,5,"Magnolia","Mississippi","MS",8073]
[null,null,null,null,null,null,null,null,null,null,287,39653,5,"Meadville","Mississippi","MS",2093]
[null,null,null,null,null,null,null,null,null,null,288,39654,5,"Monticello","Mississippi","MS",575]
[null,null,null,null,null,null,null,null,null,null,289,39656,5,"Oak Vale","Mississippi","MS",1072]
[null,null,null,null,null,null,null,null,null,null,290,39657,5,"Osyka","Mississippi","MS",2632]
[null,null,null,null,null,null,null,null,null,null,291,39661,5,"Roxie","Mississippi","MS",3205]
[null,null,null,null,null,null,null,null,null,null,292,39662,5,"Ruth","Mississippi","MS",1227]
[null,null,null,null,null,null,null,null,null,null,293,39663,5,"Silver Creek","Mississippi","MS",6928]
[null,null,null,null,null,null,null,null,null,null,294,39664,5,"Smithdale","Mississippi","MS",17955]
[null,null,null,null,null,null,null,null,null,null,295,39665,5,"Sontag","Mississippi","MS",3990]
[null,null,null,null,null,null,null,null,null,null,296,39666,5,"Summit","Mississippi","MS",12868]
[null,null,null,null,null,null,null,null,null,null,297,39667,5,"Tylertown","Mississippi","MS",723]
[null,null,null,null,null,null,null,null,null,null,298,39668,5,"Union Church","Mississippi","MS",4288]
[null,null,null,null,null,null,null,null,null,null,299,39669,5,"Woodville","Mississippi","MS",5155]
[null,null,null,null,null,null,null,null,null,null,300,39705,5,"Columbus","Mississippi","MS",2569]
[null,null,null,null,null,null,null,null,null,null,301,39710,5,"Columbus","Mississippi","MS",159]
[null,null,null,null,null,null,null,null,null,null,302,39730,5,"Aberdeen","Mississippi","MS",95]
[null,null,null,null,null,null,null,null,null,null,303,39739,5,"Brooksville","Mississippi","MS",3245]
[null,null,null,null,null,null,null,null,null,null,304,39740,5,"Caledonia","Mississippi","MS",1366]
[null,null,null,null,null,null,null,null,null,null,305,39741,5,"Cedarbluff","Mississippi","MS",15486]
[null,null,null,null,null,null,null,null,null,null,306,39743,5,"Crawford","Mississippi","MS",1606]
[null,null,null,null,null,null,null,null,null,null,307,39745,5,"French Camp","Mississippi","MS",5101]
[null,null,null,null,null,null,null,null,null,null,308,39746,5,"Hamilton","Mississippi","MS",4777]
[null,null,null,null,null,null,null,null,null,null,309,39747,5,"Kilmichael","Mississippi","MS",2072]
[null,null,null,null,null,null,null,null,null,null,310,39750,5,"Maben","Mississippi","MS",9211]
[null,null,null,null,null,null,null,null,null,null,311,39751,5,"Mantee","Mississippi","MS",1182]
[null,null,null,null,null,null,null,null,null,null,null,39752,null,"Mathiston"]
[null,null,null,null,null,null,null,null,null,null,null,39755,null,"Pheba"]
[null,null,null,null,null,null,null,null,null,null,null,39756,null,"Prairie"]
[null,null,null,null,null,null,null,null,null,null,null,39762,null,"Mississippi State"]
[null,null,null,null,null,null,null,null,null,null,null,39766,null,"Steens"]
[null,null,null,null,null,null,null,null,null,null,null,39767,null,"Stewart"]
[null,null,null,null,null,null,null,null,null,null,null,39769,null,"Sturgis"]
[null,null,null,null,null,null,null,null,null,null,null,39772,null,"Weir"]
[null,null,null,null,null,null,null,null,null,null,null,39776,null,"Woodland"]

{"sheet":"Zip Codes","index":2,"n_rows":513,"n_cols":6,"rows_kept":513,"cut":false,"hidden":true,"merged":[]}
[]
[]
[]
[]
[null,"ZIP Code","Common Cities","Post Office Name","Qualified?","LIHTC Units 2017-2022"]
[1,38601,null,"Abbeville","Yes","No"]
[{"$f":"A6+1","v":2},38603,null,"Ashland","Yes","No"]
[{"$f":"A7+1","v":3},38606,null,"Batesville","Yes","No"]
[4,38610,null,"Blue Mountain","Yes","No"]
[5,38611,null,"Byhalia","Yes","No"]
[6,38614,null,"Clarksdale","Yes","No"]
[7,38617,null,"Coahoma","Yes","No"]
[8,38618,null,"Coldwater","Yes","No"]
[9,38619,null,"Como","Yes","No"]
[10,38620,null,"Courtland","Yes","No"]
[11,38621,null,"Crenshaw","Yes","No"]
[12,38625,null,"Dumas","Yes","No"]
[13,38626,null,"Dundee","Yes","No"]
[14,38627,null,"Etta","Yes","No"]
[15,38629,null,"Falkner","Yes","No"]
[16,38631,null,"Friars Point","Yes","No"]
[17,38632,null,"Hernando","Yes","No"]
[18,38633,null,"Hickory Flat","Yes","No"]
[19,38635,null,"Holly Springs","Yes","No"]
[20,38637,null,"Horn Lake","Yes","No"]
[21,38639,null,"Jonestown","Yes"]
[22,38641,null,"Lake Cormorant","Yes","No"]
[23,38642,null,"Lamar","Yes","No"]
[24,38643,null,"Lambert","Yes","No"]
[25,38645,null,"Lyon","Yes","No"]
[26,38646,null,"Marks","Yes","No"]
[27,38647,null,"Michigan City","Yes","No"]
[28,38650,null,"Myrtle","Yes","No"]
[29,38651,null,"Nesbit","Yes","No"]
[30,38652,null,"New Albany","Yes","No"]
[31,38654,null,"Olive Branch","Yes","No"]
[32,38655,null,"Oxford","Yes"]
[33,38658,null,"Pope","Yes","No"]
[34,38659,null,"Potts Camp","Yes","No"]
[35,38661,null,"Red Banks","Yes","No"]
[36,38663,null,"Ripley","Yes","No"]
[37,38664,null,"Robinsonville","Yes","No"]
[38,38665,null,"Sarah","No","No"]
[39,38666,null,"Sardis","Yes","No"]
[40,38668,null,"Senatobia","Yes","No"]
[41,38670,null,"Sledge","Yes","No"]
[42,38671,null,"Southaven","Yes","No"]
[43,38672,null,"Southaven","Yes","No"]
[44,38673,null,"Taylor","Yes","No"]
[45,38674,null,"Tiplersville","Yes","No"]
[46,38676,null,"Tunica","Yes","No"]
[47,38677,null,"University","Yes","No"]
[48,38680,null,"Walls","No","No"]
[49,38683,null,"Walnut","Yes","No"]
[50,38685,null,"Waterford","Yes","No"]
[51,38701,null,"Greenville","Yes","No"]
[52,38703,null,"Greenville","Yes","No"]
[53,38720,null,"Alligator","Yes","No"]
[54,38721,null,"Anguilla","Yes","No"]
[55,38725,null,"Benoit","Yes","No"]
[56,38726,null,"Beulah","Yes","No"]
[57,38730,null,"Boyle","Yes","No"]
[58,38731,null,"Chatham","Yes","No"]
[59,38732,null,"Cleveland","Yes","No"]
[60,38733,null,"Cleveland","Yes","No"]
[61,38736,null,"Doddsville","Yes","No"]
[62,38737,null,"Drew","Yes","No"]
[63,38738,null,"Parchman","Yes","No"]
[64,38740,null,"Duncan","Yes","No"]
[65,38744,null,"Glen Allan","Yes","No"]
[66,38746,null,"Gunnison","Yes","No"]
[{"$f":"A71+1","v":67},38748,null,"Hollandale","Yes","No"]
[68,38751,null,"Indianola","Yes","No"]
[69,38753,null,"Inverness","Yes","No"]
[70,38754,null,"Isola","Yes","No"]
[71,38756,null,"Leland","Yes","No"]
[72,38759,null,"Merigold","Yes","No"]
[73,38761,null,"Moorhead","Yes","No"]
[74,38762,null,"Mound Bayou","Yes","No"]
[75,38769,null,"Rosedale","Yes","No"]
[76,38771,null,"Ruleville","Yes","No"]
[77,38773,null,"Shaw","Yes","No"]
[78,38774,null,"Shelby","Yes","No"]
[79,38778,null,"Sunflower","Yes","No"]
[80,38780,null,"Wayside","Yes","No"]
[81,38801,null,"Tupelo","No"]
[82,38804,null,"Tupelo","No","No"]
[83,38821,null,"Amory","Yes","No"]
[84,38824,null,"Baldwyn","Yes","No"]
[85,38826,null,"Belden","Yes","No"]
[86,38827,null,"Belmont","Yes","No"]
[87,38828,null,"Blue Springs","Yes","No"]
[88,38829,null,"Booneville","Yes","No"]
[89,38833,null,"Burnsville","Yes","No"]
[90,38838,null,"Dennis","Yes","No"]
[91,38839,null,"Derma","Yes","No"]
[92,38841,null,"Ecru","Yes","No"]
[93,38843,null,"Fulton","Yes","No"]
[94,38844,null,"Gattman","Yes","No"]
[95,38846,null,"Glen","Yes","No"]
[96,38847,null,"Golden","Yes","No"]
[97,38848,null,"Greenwood Springs","Yes","No"]
[98,38849,null,"Guntown","Yes","No"]
[99,38850,null,"Houlka","Yes","No"]
[100,38851,null,"Houston","Yes","No"]
[101,38852,null,"Iuka","Yes","No"]
[102,38855,null,"Mantachie","Yes","No"]
[103,38856,null,"Marietta","Yes","No"]
[104,38857,null,"Mooreville","Yes","No"]
[105,38858,null,"Nettleton","Yes","No"]
[106,38859,null,"New Site","Yes","No"]
[107,38860,null,"Okolona","Yes","No"]
[108,38862,null,"Plantersville","Yes","No"]
[109,38863,null,"Pontotoc","Yes"]
[110,38864,null,"Randolph","Yes","No"]
[111,38865,null,"Rienzi","Yes","No"]
[112,38866,null,"Saltillo","Yes","No"]
[113,38868,null,"Shannon","Yes","No"]
[114,38870,null,"Smithville","Yes","No"]
[115,38871,null,"Thaxton","Yes","No"]
[116,38873,null,"Tishomingo","Yes","No"]
[117,38876,null,"Tremont","Yes","No"]
[118,38878,null,"Vardaman","Yes","No"]
[119,38879,null,"Verona","Yes","No"]
[120,38901,null,"Grenada","No","No"]
[121,38913,null,"Banner","Yes","No"]
[122,38914,null,"Big Creek","Yes","No"]
[123,38915,null,"Bruce","Yes","No"]
[124,38916,null,"Calhoun City","Yes","No"]
[125,38917,null,"Carrollton","Yes","No"]
[126,38920,null,"Cascilla","Yes","No"]
[127,38921,null,"Charleston","Yes","No"]
[128,38922,null,"Coffeeville","Yes","No"]
[129,38923,null,"Coila","Yes","No"]
[130,38924,null,"Cruger","Yes","No"]
[{"$f":"A135+1","v":131},38925,null,"Duck Hill","Yes","No"]
[132,38927,null,"Enid","Yes","No"]
[133,38928,null,"Glendora","Yes","No"]
[134,38929,null,"Gore Springs","Yes","No"]
[135,38930,null,"Greenwood","No","No"]
[136,38940,null,"Holcomb","Yes","No"]
[137,38941,null,"Itta Bena","Yes","No"]
[138,38943,null,"MC Carley","Yes","No"]
[139,38944,null,"Minter City","Yes","No"]
[140,38947,null,"North Carrollton","Yes","No"]
[141,38948,null,"Oakland","Yes","No"]
[142,38949,null,"Paris","Yes","No"]
[143,38950,null,"Philipp","Yes","No"]
[144,38951,null,"Pittsboro","Yes","No"]
[145,38952,null,"Schlater","Yes","No"]
[146,38953,null,"Scobey","Yes","No"]
[147,38954,null,"Sidon","Yes","No"]
[148,38957,null,"Sumner","Yes","No"]
[149,38961,null,"Tillatoba","Yes","No"]
[150,38963,null,"Tutwiler","Yes","No"]
[151,38964,null,"Vance","Yes","No"]
[152,38965,null,"Water Valley","Yes","No"]
[153,38967,null,"Winona","Yes","No"]
[154,39038,null,"Belzoni","Yes","No"]
[155,39039,null,"Benton","Yes","No"]
[156,39040,null,"Bentonia","Yes","No"]
[157,39041,null,"Bolton","Yes","No"]
[158,39042,null,"Brandon","Yes","No"]
[159,39044,null,"Braxton","Yes","No"]
[160,39045,null,"Camden","Yes","No"]
[161,39046,null,"Canton","No"]
[162,39047,null,"Brandon","Yes","No"]
[163,39051,null,"Carthage","Yes","No"]
[164,39054,null,"Cary","Yes","No"]
[165,39056,null,"Clinton","Yes","No"]
[166,39057,null,"Conehatta","Yes","No"]
[167,39058,null,"Clinton","Yes","No"]
[168,39059,null,"Crystal Springs","Yes","No"]
[169,39063,null,"Durant","Yes","No"]
[170,39066,null,"Edwards","Yes","No"]
[171,39067,null,"Ethel","Yes","No"]
[172,39069,null,"Fayette","Yes","No"]
[173,39071,null,"Flora","Yes","No"]
[174,39072,null,"Pocahontas","Yes"]
[175,39073,null,"Florence","Yes","No"]
[176,39074,null,"Forest","Yes","No"]
[177,39078,null,"Georgetown","Yes","No"]
[178,39079,null,"Goodman","Yes","No"]
[179,39082,null,"Harrisville","Yes","No"]
[180,39083,null,"Hazelhurst","Yes","No"]
[181,39086,null,"Hermanville","Yes","No"]
[182,39088,null,"Holly Bluff","Yes","No"]
[183,39090,null,"Kosciusko","Yes","No"]
[184,39092,null,"Lake","Yes","No"]
[185,39094,null,"Lena","Yes","No"]
[186,39095,null,"Lexington","Yes","No"]
[187,39096,null,"Lorman","Yes","No"]
[188,39097,null,"Louise","Yes","No"]
[189,39108,null,"MC Cool","Yes","No"]
[190,39110,null,"Madison","Yes","No"]
[191,39111,null,"Magee","Yes","No"]
[192,39113,null,"Mayersville","Yes","No"]
[193,39114,null,"Mendenhall","Yes","No"]
[194,39116,null,"Mize","Yes","No"]
[{"$f":"A199+1","v":195},39117,null,"Morton","Yes","No"]
[196,39119,null,"Mount Olive","Yes","No"]
[197,39120,null,"Natchez","Yes","No"]
[198,39140,null,"Newhebron","Yes","No"]
[199,39144,null,"Pattison","Yes","No"]
[200,39145,null,"Pelahatchie","Yes","No"]
[201,39146,null,"Pickens","Yes","No"]
[202,39149,null,"Pinola","Yes","No"]
[203,39150,null,"Port Gibson","Yes","No"]
[204,39152,null,"Pulaski","Yes","No"]
[205,39153,null,"Raleigh","Yes","No"]
[206,39154,null,"Raymond","Yes","No"]
[207,39156,null,"Redwood","Yes","No"]
[208,39157,null,"Ridgeland","Yes","No"]
[209,39159,null,"Rolling Fork","Yes","No"]
[210,39160,null,"Sallis","Yes","No"]
[211,39162,null,"Satartia","Yes","No"]
[212,39166,null,"Silver City","Yes","No"]
[213,39168,null,"Taylorsville","Yes","No"]
[214,39169,null,"Tchula","Yes","No"]
[215,39170,null,"Terry","Yes","No"]
[216,39173,null,"Tinsley","Yes","No"]
[217,39174,null,"Tougaloo","Yes","No"]
[218,39175,null,"Utica","Yes","No"]
[219,39176,null,"Vaiden","Yes","No"]
[220,39177,null,"Valley Park","Yes","No"]
[221,39179,null,"Vaughan","Yes","No"]
[222,39180,null,"Vicksburg","Yes","No"]
[223,39183,null,"Vicksburg","Yes","No"]
[224,39189,null,"Walnut Grove","Yes","No"]
[225,39191,null,"Wesson","Yes","No"]
[226,39192,null,"West","Yes","No"]
[227,39194,null,"Yazoo City","Yes","No"]
[228,39201,null,"Jackson","Yes","No"]
[229,39202,null,"Jackson","No","No"]
[230,39203,null,"Jackson","Yes","No"]
[231,39204,null,"Jackson","Yes","No"]
[232,39206,null,"Jackson","Yes","No"]
[233,39208,null,"Pearl ","Yes","No"]
[234,39209,null,"Jackson","Yes","No"]
[235,39210,null,"Jackson","Yes","No"]
[236,39211,null,"Jackson","Yes","No"]
[237,39212,null,"Jackson","No","No"]
[238,39213,null,"Delta Station","Yes","No"]
[239,39216,null,"Jackson","Yes","No"]
[240,39217,null,"Jackson","Yes","No"]
[241,39218,null,"Richland","Yes","No"]
[242,39232,null,"Flowood","Yes","No"]
[243,39272,null,"Byram","Yes","No"]
[244,39301,null,"Meridian","Yes"]
[245,39305,null,"Meridian","Yes","No"]
[246,39307,null,"West Meridian","Yes","No"]
[247,39309,null,"Meridian","Yes","No"]
[248,39320,null,"Bailey","Yes","No"]
[249,39322,null,"Buckatunna","Yes","No"]
[250,39323,null,"Chunky","Yes","No"]
[251,39325,null,"Collinsville","Yes","No"]
[252,39326,null,"Daleville","Yes","No"]
[253,39327,null,"Decatur","Yes","No"]
[254,39328,null,"De Kalb","Yes","No"]
[255,39330,null,"Enterprise","Yes","No"]
[256,39332,null,"Hickory","Yes","No"]
[257,39335,null,"Lauderdale","Yes","No"]
[258,39336,null,"Lawrence","Yes","No"]
[{"$f":"A263+1","v":259},39337,null,"Little Rock","Yes","No"]
[260,39338,null,"Louin","Yes","No"]
[261,39339,null,"Louisville","No","No"]
[262,39341,null,"Macon","Yes","No"]
[263,39342,null,"Marion","Yes","No"]
[264,39345,null,"Newton","Yes","No"]
[265,39346,null,"Noxapater","Yes","No"]
[266,39347,null,"Pachuta","Yes","No"]
[267,39348,null,"Paulding","Yes","No"]
[268,39350,null,"Philadelphia","Yes","No"]
[269,39352,null,"Porterville","Yes","No"]
[270,39354,null,"Preston","Yes","No"]
[271,39355,null,"Quitman","Yes","No"]
[272,39356,null,"Rose Hill","Yes","No"]
[273,39358,null,"Scooba","Yes","No"]
[274,39359,null,"Sebastopol","Yes","No"]
[275,39360,null,"Shubuta","Yes","No"]
[276,39361,null,"Shuqualak","Yes","No"]
[277,39362,null,"State Line","Yes","No"]
[278,39363,null,"Stonewall","Yes","No"]
[279,39364,null,"Toomsuba","Yes","No"]
[280,39365,null,"Union","Yes","No"]
[281,39366,null,"Vossburg","Yes","No"]
[282,39367,null,"Waynesboro","Yes","No"]
[283,39401,null,"Hattiesburg","No"]
[284,39402,null,"Hattiesburg","Yes","No"]
[285,39406,null,"Hattiesburg","Yes","No"]
[286,39421,null,"Bassfield","Yes","No"]
[287,39422,null,"Bay Springs","Yes","No"]
[288,39423,null,"Beaumont","Yes","No"]
[289,39425,null,"Brooklyn","Yes","No"]
[290,39426,null,"Carriere","Yes","No"]
[291,39427,null,"Carson","Yes","No"]
[292,39428,null,"Collins","Yes","No"]
[293,39429,null,"Columbia","Yes","No"]
[294,39437,null,"Ellisville","Yes","No"]
[295,39439,null,"Heidelberg","Yes","No"]
[296,39440,null,"Laurel","Yes","No"]
[297,39443,null,"Laurel","Yes","No"]
[298,39451,null,"Leakesville","Yes","No"]
[299,39452,null,"Lucedale","Yes","No"]
[300,39455,null,"Lumberton","Yes","No"]
[301,39456,null,"MC Lain","Yes","No"]
[302,39459,null,"Moselle","Yes","No"]
[303,39461,null,"Neely","Yes","No"]
[304,39462,null,"New Augusta","Yes","No"]
[305,39464,null,"Ovett","Yes","No"]
[306,39465,null,"Petal","Yes","No"]
[307,39466,null,"Picayune","Yes","No"]
[308,39470,null,"Poplarville","Yes","No"]
[309,39474,null,"Prentiss","Yes","No"]
[310,39475,null,"Purvis","Yes","No"]
[311,39476,null,"Richton","Yes","No"]
[312,39478,null,"Sandy Hook","Yes","No"]
[313,39479,null,"Seminary","Yes","No"]
[314,39480,null,"Soso","Yes","No"]
[315,39481,null,"Stringer","Yes","No"]
[316,39482,null,"Sumrall","Yes","No"]
[317,39483,null,"Foxworth","Yes","No"]
[318,39501,null,"Gulfport","No","No"]
[319,39502,null,"Gulfport","No","No"]
[320,39503,null,"Gulfport","No","No"]
[321,39507,null,"Gulfport","Yes","No"]
[322,39520,null,"Bay Saint Louis","Yes","No"]
[{"$f":"A327+1","v":323},39525,null,"Diamondhead","Yes","No"]
[324,39529,null,"Stennis Space Center","Yes","No"]
[325,39530,null,"Biloxi","Yes","No"]
[326,39531,null,"Biloxi","Yes","No"]
[327,39532,null,"Biloxi","Yes","No"]
[328,39534,null,"Biloxi","Yes","No"]
[329,39540,null,"Diberville","Yes","No"]
[330,39553,null,"Gautier","Yes","No"]
[331,39556,null,"Kiln","Yes","No"]
[332,39560,null,"Long Beach","Yes","No"]
[333,39561,null,"MC Henry","Yes","No"]
[334,39562,null,"Moss Point","Yes","No"]
[335,39563,null,"Moss Point","Yes","No"]
[336,39564,null,"Ocean Springs","Yes","No"]
[337,39565,null,"Vancleave","Yes","No"]
[338,39567,null,"Pascagoula","Yes","No"]
[339,39571,null,"Pass Christian","Yes","No"]
[340,39572,null,"Pearlington","Yes","No"]
[341,39573,null,"Perkinston","Yes","No"]
[342,39574,null,"Saucier","Yes","No"]
[343,39576,null,"Waveland","Yes","No"]
[344,39577,null,"Wiggins","Yes","No"]
[345,39581,null,"Pascagoula","Yes","No"]
[346,39601,null,"Brookhaven","No","No"]
[347,39629,null,"Bogue Chitto","Yes","No"]
[348,39630,null,"Bude","Yes","No"]
[349,39631,null,"Centreville","Yes","No"]
[350,39633,null,"Crosby","Yes","No"]
[351,39638,null,"Gloster","Yes","No"]
[352,39641,null,"Jayess","Yes","No"]
[353,39643,null,"Kokomo","Yes","No"]
[354,39645,null,"Liberty","Yes","No"]
[355,39647,null,"MC Call Creek","Yes","No"]
[356,39648,null,"McComb","Yes","No"]
[357,39652,null,"Magnolia","Yes","No"]
[358,39653,null,"Meadville","Yes","No"]
[359,39654,null,"Monticello","Yes","No"]
[360,39656,null,"Oak Vale","Yes","No"]
[361,39657,null,"Osyka","Yes","No"]
[362,39661,null,"Roxie","Yes","No"]
[363,39662,null,"Ruth","Yes","No"]
[364,39663,null,"Silver Creek","Yes","No"]
[365,39664,null,"Smithdale","Yes","No"]
[366,39665,null,"Sontag","Yes","No"]
[367,39666,null,"Summit","Yes","No"]
[368,39667,null,"Tylertown","Yes","No"]
[369,39668,null,"Union Church","Yes","No"]
[370,39669,null,"Woodville","Yes","No"]
[371,39701,null,"Columbus","Yes","No"]
[372,39702,null,"Columbus","Yes","No"]
[373,39705,null,"Columbus","Yes","No"]
[374,39710,null,"Columbus","Yes","No"]
[375,39730,null,"Aberdeen","Yes","No"]
[376,39735,null,"Ackerman","Yes","No"]
[377,39736,null,"Artesia","Yes","No"]
[378,39737,null,"Bellefontaine","Yes","No"]
[379,39739,null,"Brooksville","Yes","No"]
[380,39740,null,"Caledonia","Yes","No"]
[381,39741,null,"Cedarbluff","Yes","No"]
[382,39743,null,"Crawford","Yes","No"]
[383,39744,null,"Eupora","Yes","No"]
[384,39745,null,"French Camp","Yes","No"]
[385,39746,null,"Hamilton","Yes","No"]
[386,39747,null,"Kilmichael","Yes","No"]
[{"$f":"A391+1","v":387},39750,null,"Maben","Yes","No"]
[388,39751,null,"Mantee","Yes","No"]
[389,39752,null,"Mathiston","Yes","No"]
[390,39755,null,"Pheba","Yes","No"]
[391,39756,null,"Prairie","Yes","No"]
[392,39759,null,"Starkville","No"]
[393,39762,null,"Mississippi State","Yes","No"]
[394,39766,null,"Steens","Yes","No"]
[395,39767,null,"Stewart","Yes","No"]
[396,39769,null,"Sturgis","Yes","No"]
[397,39771,null,"Walthall","Yes","No"]
[398,39772,null,"Weir","Yes","No"]
[399,39773,null,"West Point","Yes","No"]
[400,39776,null,"Woodland","Yes","No"]
[401]
[402]
[403]
[404]
[405]
[406]
[407]
[408]
[409]
[410]
[411]
[412]
[413]
[414]
[415]
[416]
[417]
[418]
[419]
[420]
[421]
[422]
[423]
[424]
[425]
[426]
[427]
[428]
[429]
[430]
[431]
[432]
[433]
[434]
[435]
[436]
[437]
[438]
[439]
[440]
[441]
[442]
[443]
[444]
[445]
[446]
[447]
[448]
[449]
[450]
[{"$f":"A455+1","v":451}]
[452]
[453]
[454]
[455]
[456]
[457]
[458]
[459]
[460]
[461]
[462]
[463]
[464]
[465]
[466]
[467]
[468]
[469]
[470]
[471]
[472]
[473]
[474]
[475]
[476]
[477]
[478]
[479]
[480]
[481]
[482]
[483]
[484]
[485]
[486]
[487]
[488]
[489]
[490]
[491]
[492]
[493]
[494]
[495]
[496]
[497]
[498]
[499]
[500]
[501]
[502]
[503]
[504]
[505]
[506]
[507]
[508]

{"sheet":"Sheet1","index":3,"n_rows":509,"n_cols":5,"rows_kept":509,"cut":false,"hidden":true,"merged":[]}
[]
[]
[38601,"Abbeville","Lafayette County",{"$f":"IF(E3=\"No\",\"Yes\",\"No\")","v":"Yes"},"No"]
[38602,"Arkabutla","Tate County",{"$f":"IF(E4=\"No\",\"Yes\",\"No\")","v":"Yes"},"No"]
[38603,"Ashland, Canaan","Benton County",{"$f":"IF(E5=\"No\",\"Yes\",\"No\")","v":"Yes"},"No"]
[38606,"Batesville","Panola County","Yes","Yes"]
[38609,"Belen","Quitman County",{"$f":"IF(E7=\"No\",\"Yes\",\"No\")","v":"No"},"Yes"]
[38610,"Blue Mountain","Tippah County","Yes","No"]
[38611,"Byhalia","Marshall County","Yes","No"]
[38614,"Clarksdale, Mattson, Stovall","Coahoma County","Yes","No"]
[38617,"Coahoma, Rich","Coahoma County","Yes","No"]
[38618,"Coldwater","Tate County","Yes","No"]
[38619,"Como","Panola County","Yes","No"]
[38620,"Courtland","Panola County","Yes","No"]
[38621,"Crenshaw, Askew","Panola County","Yes","Yes"]
[38622,"Crowder","Quitman County",{"$f":"IF(E16=\"No\",\"Yes\",\"No\")","v":"Yes"},"No"]
[38623,"Darling","Quitman County","Yes","No"]
[38625,"Dumas","Tippah County","Yes","No"]
[38626,"Dundee","Tunica County","Yes","No"]
[38627,"Etta","Union County","Yes","No"]
[38629,"Falkner","Tippah County","Yes","No"]
[38631,"Friars Point","Coahoma County","Yes","Yes"]
[38632,"Hernando","DeSoto County",{"$f":"IF(E23=\"No\",\"Yes\",\"No\")","v":"Yes"},"No"]
[38633,"Hickory Flat","Benton County","Yes","No"]
[38635,"Holly Springs, Mount Pleasant, Mt Pleasant","Marshall County","No","Yes"]
[38637,"Horn Lake","DeSoto County","Yes","No"]
[38638,"Independence","Tate County","Yes","No"]
[38639,"Jonestown","Coahoma County","Yes","No"]
[38641,"Lake Cormorant, Lk Cormorant","DeSoto County","Yes","No"]
[38642,"Lamar","Benton County","Yes","No"]
[38643,"Lambert","Quitman County","Yes","No"]
[38644,"Lula","Coahoma County","Yes","No"]
[38645,"Lyon","Coahoma County","Yes","No"]
[38646,"Marks","Quitman County","Yes","No"]
[38647,"Michigan City","Benton County","Yes","No"]
[38649,"Mount Pleasant, Holly Springs, Mt Pleasant","Marshall County","Yes","No"]
[38650,"Myrtle","Union County","Yes","No"]
[38651,"Nesbit","DeSoto County","Yes","No"]
[38652,"New Albany","Union County","No","Yes"]
[38654,"Olive Branch, Mineral Wells","DeSoto County","Yes","No"]
[38655,"Oxford, Lafayette","Lafayette County","Yes","No"]
[38658,"Pope","Panola County","Yes","No"]
[38659,"Potts Camp","Marshall County","Yes","No"]
[38661,"Red Banks","Marshall County","Yes","No"]
[38663,"Ripley","Tippah County","Yes","No"]
[38664,"Robinsonville, Tunica Resort, Tunica Resorts","Tunica County","Yes","No"]
[38665,"Sarah, Savage","Tate County","Yes","No"]
[38666,"Sardis","Panola County","Yes","Yes"]
[38668,"Senatobia","Tate County",{"$f":"IF(E49=\"No\",\"Yes\",\"No\")","v":"Yes"},"No"]
[38670,"Sledge, Falcon","Quitman County","Yes","No"]
[38671,"Southaven","DeSoto County","Yes","No"]
[38672,"Southaven","DeSoto County","Yes","No"]
[38673,"Taylor","Lafayette County","Yes","No"]
[38674,"Tiplersville","Tippah County","Yes","No"]
[38676,"Tunica","Tunica County","Yes","No"]
[38677,"University","Lafayette County","Yes","No"]
[38679,"Victoria","Marshall County","Yes","No"]
[38680,"Walls","DeSoto County","Yes","No"]
[38683,"Walnut","Tippah County","Yes","No"]
[38685,"Waterford","Marshall County","Yes","No"]
[38686,"Walls","Desoto County","Yes","No"]
[38701,"Greenville","Washington County","Yes","No"]
[38703,"Greenville, Lamont","Washington County","Yes","No"]
[38704,"Greenville","Issaquena County","No"]
[38720,"Alligator","Coahoma County","Yes","No"]
[38721,"Anguilla, Nitta Yuma","Sharkey County","Yes","No"]
[38722,"Arcola","Washington County","Yes","No"]
[38723,"Avon","Washington County","Yes","No"]
[38725,"Benoit","Bolivar County","Yes","No"]
[38726,"Beulah","Bolivar County","Yes","No"]
[38730,"Boyle, Skene","Bolivar County","Yes","No"]
[38731,"Chatham, Greenville","Washington County","Yes","No"]
[38732,"Cleveland","Bolivar County","Yes","No"]
[38733,"Cleveland","Bolivar County","Yes","No"]
[38736,"Doddsville","Sunflower County","Yes","No"]
[38737,"Drew","Sunflower County","No","Yes"]
[38738,"Parchman","Sunflower County","Yes","No"]
[38739,"Dublin","Coahoma County","Yes","No"]
[38740,"Duncan","Bolivar County","Yes","No"]
[38744,"Glen Allan","Washington County","Yes","No"]
[38745,"Grace","Issaquena County","Yes","No"]
[38746,"Gunnison","Bolivar County","Yes","No"]
[38748,"Hollandale, Percy","Washington County","Yes","No"]
[38751,"Indianola, Baird","Sunflower County","Yes","No"]
[38753,"Inverness","Sunflower County","Yes","No"]
[38754,"Isola","Humphreys County","Yes","No"]
[38756,"Leland, Elizabeth","Washington County","Yes","No"]
[38759,"Merigold","Bolivar County","Yes","No"]
[38760,"Metcalfe","Washington County","Yes","No"]
[38761,"Moorhead","Sunflower County","Yes","No"]
[38762,"Mound Bayou","Bolivar County","Yes","No"]
[38764,"Pace","Bolivar County","Yes","No"]
[38765,"Panther Burn","Sharkey County","Yes","No"]
[38767,"Rena Lara","Coahoma County","Yes","No"]
[38768,"Rome","Sunflower County","Yes","No"]
[38769,"Rosedale","Bolivar County","Yes","Yes"]
[38771,"Ruleville","Sunflower County",{"$f":"IF(E97=\"No\",\"Yes\",\"No\")","v":"Yes"},"No"]
[38772,"Scott","Bolivar County","Yes","No"]
[38773,"Shaw","Bolivar County","Yes","No"]
[38774,"Shelby","Bolivar County","Yes","No"]
[38776,"Stoneville","Washington County","Yes","No"]
[38778,"Sunflower","Sunflower County","Yes","No"]
[38780,"Wayside","Washington County","Yes","No"]
[38781,"Winstonville","Bolivar County","Yes","No"]
[38782,"Winterville","Washington County","Yes","No"]
[38801,"Tupelo","Lee County","No","Yes"]
[38802,"Tupelo","Lee County","Yes","No"]
[38803,"Tupelo","Lee County","Yes","No"]
[38804,"Tupelo","Lee County","Yes","No"]
[38820,"Algoma","Pontotoc County","Yes","No"]
[38821,"Amory","Monroe County","Yes","No"]
[38824,"Baldwyn","Prentiss County","No","Yes"]
[38825,"Becker","Monroe County","Yes","No"]
[38826,"Belden","Lee County","Yes","No"]
[38827,"Belmont","Tishomingo County","Yes","No"]
[38828,"Blue Springs","Union County","Yes","No"]
[38829,"Booneville","Prentiss County","Yes","No"]
[38833,"Burnsville","Tishomingo County","Yes","No"]
[38834,"Corinth, Kossuth","Alcorn County","No","Yes"]
[38835,"Corinth","Alcorn County","Yes","No"]
[38838,"Dennis","Tishomingo County","Yes","No"]
[38839,"Derma","Calhoun County","Yes","No"]
[38841,"Ecru","Pontotoc County","Yes","No"]
[38843,"Fulton","Itawamba County","Yes","No"]
[38844,"Gattman","Monroe County","Yes","No"]
[38846,"Glen","Alcorn County","Yes","No"]
[38847,"Golden","Itawamba County","Yes","No"]
[38848,"Greenwood Springs, Greenwood Spg, Greenwood Spr","Monroe County","Yes","No"]
[38849,"Guntown","Lee County","Yes","No"]
[38850,"Houlka","Chickasaw County","Yes","No"]
[38851,"Houston","Chickasaw County","Yes","No"]
[38852,"Iuka","Tishomingo County","Yes","No"]
[38855,"Mantachie","Itawamba County","Yes","No"]
[38856,"Marietta","Itawamba County","Yes","No"]
[38857,"Mooreville","Lee County","Yes","No"]
[38858,"Nettleton","Monroe County","Yes","No"]
[38859,"New Site","Prentiss County","Yes","No"]
[38860,"Okolona, Egypt","Chickasaw County","Yes","No"]
[38862,"Plantersville","Lee County","Yes","Yes"]
[38863,"Pontotoc","Pontotoc County",{"$f":"IF(E140=\"No\",\"Yes\",\"No\")","v":"No"},"Yes"]
[38864,"Randolph, Sarepta","Pontotoc County","Yes","No"]
[38865,"Rienzi","Alcorn County","Yes","No"]
[38866,"Saltillo","Lee County","Yes","No"]
[38868,"Shannon","Lee County","Yes","No"]
[38869,"Sherman","Pontotoc County","Yes","No"]
[38870,"Smithville","Monroe County","Yes","No"]
[38871,"Thaxton","Pontotoc County","Yes","No"]
[38873,"Tishomingo","Tishomingo County","Yes","No"]
[38874,"Toccopola","Pontotoc County","Yes","No"]
[38875,"Trebloc","Chickasaw County","Yes","No"]
[38876,"Tremont","Itawamba County","Yes","No"]
[38877,"Van Vleet","Chickasaw County","Yes","No"]
[38878,"Vardaman","Calhoun County","Yes","No"]
[38879,"Verona","Lee County","Yes","No"]
[38880,"Wheeler","Prentiss County","Yes","No"]
[38901,"Grenada","Grenada County","Yes","No"]
[38913,"Banner","Calhoun County","Yes","No"]
[38914,"Big Creek","Calhoun County","Yes","No"]
[38915,"Bruce","Calhoun County","Yes","No"]
[38916,"Calhoun City","Calhoun County","Yes","No"]
[38917,"Carrollton","Carroll County","Yes","No"]
[38920,"Cascilla","Tallahatchie County","Yes","No"]
[38921,"Charleston","Tallahatchie County","Yes","No"]
[38922,"Coffeeville","Yalobusha County","Yes","No"]
[38923,"Coila","Carroll County","Yes","No"]
[38924,"Cruger","Holmes County","Yes","No"]
[38925,"Duck Hill","Montgomery County","Yes","No"]
[38927,"Enid","Tallahatchie County","Yes","No"]
[38928,"Glendora","Tallahatchie County","Yes","No"]
[38929,"Gore Springs","Grenada County","Yes","No"]
[38930,"Greenwood, Avalon","Leflore County","Yes","No"]
[38940,"Holcomb","Grenada County",{"$f":"IF(E172=\"No\",\"Yes\",\"No\")","v":"Yes"},"No"]
[38941,"Itta Bena","Leflore County","Yes","No"]
[38943,"Mc Carley","Carroll County","Yes","No"]
[38944,"Minter City","Leflore County","Yes","No"]
[38946,"Morgan City","Leflore County","Yes","No"]
[38947,"North Carrollton, N Carrollton","Carroll County","Yes","No"]
[38948,"Oakland","Yalobusha County","Yes","No"]
[38949,"Paris, Bruce","Lafayette County","Yes","No"]
[38950,"Philipp","Tallahatchie County","Yes","No"]
[38951,"Pittsboro","Calhoun County","Yes","No"]
[38952,"Schlater","Leflore County","Yes","No"]
[38953,"Scobey","Tallahatchie County","Yes","No"]
[38954,"Sidon","Leflore County","Yes","No"]
[38957,"Sumner","Tallahatchie County","Yes","No"]
[38958,"Swan Lake, Charleston","Leflore County","Yes","No"]
[38959,"Swiftown","Leflore County","Yes","No"]
[38960,"Tie Plant","Grenada County","Yes","No"]
[38961,"Tillatoba","Yalobusha County","Yes","No"]
[38962,"Tippo","Tallahatchie County","Yes","No"]
[38963,"Tutwiler","Tallahatchie County","Yes","No"]
[38964,"Vance","Quitman County","Yes","No"]
[38965,"Water Valley","Yalobusha County","Yes","No"]
[38966,"Webb","Tallahatchie County","Yes","No"]
[38967,"Winona","Montgomery County","Yes","No"]
[39038,"Belzoni","Humphreys County","No","Yes"]
[39039,"Benton","Yazoo County","Yes","No"]
[39040,"Bentonia","Yazoo County","Yes","No"]
[39041,"Bolton","Hinds County","Yes","No"]
[39042,"Brandon","Rankin County","No","Yes"]
[39043,"Brandon","Rankin County","Yes","No"]
[39044,"Braxton","Simpson County","Yes","No"]
[39045,"Camden","Madison County","Yes","No"]
[39046,"Canton","Madison County",{"$f":"IF(E204=\"No\",\"Yes\",\"No\")","v":"No"},"Yes"]
[39047,"Brandon","Rankin County","Yes","No"]
[39051,"Carthage, Edinburg","Leake County","Yes","No"]
[39054,"Cary","Sharkey County","Yes","No"]
[39056,"Clinton","Hinds County","Yes","No"]
[39057,"Conehatta","Newton County","Yes","No"]
[39058,"Clinton","Hinds County","Yes","No"]
[39059,"Crystal Springs, Crystal Spgs","Copiah County","Yes","No"]
[39060,"Clinton","Hinds County","Yes","No"]
[39061,"Delta City","Sharkey County","Yes","No"]
[39062,"D Lo","Simpson County","Yes","No"]
[39063,"Durant","Holmes County","Yes","No"]
[39066,"Edwards","Hinds County","Yes","No"]
[39067,"Ethel","Attala County","Yes","No"]
[39069,"Fayette","Jefferson County","Yes","Yes"]
[39071,"Flora","Madison County",{"$f":"IF(E219=\"No\",\"Yes\",\"No\")","v":"Yes"},"No"]
[39072,"Pocahontas","Hinds County","Yes","No"]
[39073,"Florence","Rankin County",{"$f":"IF(E221=\"No\",\"Yes\",\"No\")","v":"Yes"},"No"]
[39074,"Forest","Scott County","No","Yes"]
[39077,"Gallman","Copiah County","Yes","No"]
[39078,"Georgetown","Copiah County","Yes","No"]
[39079,"Goodman","Holmes County","Yes","No"]
[39080,"Harperville","Scott County","Yes","No"]
[39082,"Harrisville","Simpson County","Yes","No"]
[39083,"Hazlehurst","Copiah County","No","Yes"]
[39086,"Hermanville","Claiborne County","Yes","No"]
[39087,"Hillsboro","Scott County","Yes","No"]
[39088,"Holly Bluff","Yazoo County","Yes","No"]
[39090,"Kosciusko","Attala County","Yes","No"]
[39092,"Lake","Scott County","Yes","No"]
[39094,"Lena","Leake County","Yes","No"]
[39095,"Lexington","Holmes County","Yes","No"]
[39096,"Lorman","Claiborne County","Yes","No"]
[39097,"Louise","Humphreys County","Yes","No"]
[39098,"Ludlow","Scott County","Yes","No"]
[39108,"Mc Cool","Attala County","Yes","No"]
[39109,"Madden","Leake County","Yes","No"]
[39110,"Madison","Madison County","Yes","No"]
[39111,"Magee, Sanatorium","Simpson County","Yes","No"]
[39113,"Mayersville","Issaquena County","Yes","No"]
[39114,"Mendenhall","Simpson County","Yes","No"]
[39116,"Mize","Smith County","Yes","No"]
[39117,"Morton","Scott County","Yes","Yes"]
[39119,"Mount Olive","Covington County","Yes","Yes"]
[39120,"Natchez, Church Hill","Adams County",{"$f":"IF(E248=\"No\",\"Yes\",\"No\")","v":"No"},"Yes"]
[39121,"Natchez","Adams County","Yes","No"]
[39122,"Natchez","Adams County","Yes","No"]
[39130,"Madison","Madison County","Yes","No"]
[39140,"Newhebron","Lawrence County","Yes","No"]
[39144,"Pattison","Claiborne County","Yes","No"]
[39145,"Pelahatchie","Rankin County","No","Yes"]
[39146,"Pickens","Holmes County","Yes","Yes"]
[39148,"Piney Woods","Rankin County",{"$f":"IF(E256=\"No\",\"Yes\",\"No\")","v":"Yes"},"No"]
[39149,"Pinola","Simpson County","Yes","No"]
[39150,"Port Gibson","Claiborne County","Yes","No"]
[39151,"Puckett","Rankin County","Yes","No"]
[39152,"Pulaski","Smith County","Yes","No"]
[39153,"Raleigh","Smith County","Yes","No"]
[39154,"Raymond, Learned","Hinds County","Yes","No"]
[39156,"Redwood","Warren County","Yes","No"]
[39157,"Ridgeland","Madison County","Yes","No"]
[39158,"Ridgeland","Madison County","Yes","No"]
[39159,"Rolling Fork, Fitler","Sharkey County","Yes","No"]
[39160,"Sallis","Attala County","Yes","No"]
[39161,"Sandhill","Rankin County","Yes","No"]
[39162,"Satartia","Yazoo County","Yes","No"]
[39163,"Sharon","Madison County","Yes","No"]
[39166,"Silver City","Humphreys County","Yes","No"]
[39167,"Star","Rankin County","Yes","No"]
[39168,"Taylorsville","Smith County","Yes","No"]
[39169,"Tchula, Thornton","Holmes County","Yes","No"]
[39170,"Terry","Hinds County","Yes","No"]
[39171,"Thomastown","Leake County","Yes","No"]
[39173,"Tinsley","Yazoo County","Yes","No"]
[39174,"Tougaloo","Madison County","Yes","No"]
[39175,"Utica","Hinds County","Yes","No"]
[39176,"Vaiden","Carroll County","Yes","No"]
[39177,"Valley Park","Issaquena County","Yes","No"]
[39179,"Vaughan, Pickens","Yazoo County","Yes","No"]
[39180,"Vicksburg","Warren County","No","Yes"]
[39181,"Vicksburg","Warren County","Yes","No"]
[39182,"Vicksburg","Warren County","Yes","No"]
[39183,"Vicksburg","Warren County","No","Yes"]
[39189,"Walnut Grove","Leake County","Yes","No"]
[39190,"Washington","Adams County","Yes","No"]
[39191,"Wesson","Copiah County","Yes","No"]
[39192,"West","Attala County","Yes","No"]
[39193,"Whitfield","Rankin County","Yes","No"]
[39194,"Yazoo City","Yazoo County","Yes","Yes"]
[39201,"Jackson","Hinds County",{"$f":"IF(E293=\"No\",\"Yes\",\"No\")","v":"Yes"},"No"]
[39202,"Jackson","Hinds County","Yes","Yes"]
[39203,"Jackson","Hinds County",{"$f":"IF(E295=\"No\",\"Yes\",\"No\")","v":"Yes"},"No"]
[39204,"Jackson","Hinds County",{"$f":"IF(E296=\"No\",\"Yes\",\"No\")","v":"Yes"},"No"]
[39205,"Jackson","Hinds County",{"$f":"IF(E297=\"No\",\"Yes\",\"No\")","v":"Yes"},"No"]
[39206,"Jackson","Hinds County","Yes","Yes"]
[39207,"Jackson","Hinds County",{"$f":"IF(E299=\"No\",\"Yes\",\"No\")","v":"Yes"},"No"]
[39208,"Pearl, Jackson","Rankin County",{"$f":"IF(E300=\"No\",\"Yes\",\"No\")","v":"Yes"},"No"]
[39209,"Jackson","Hinds County","Yes","Yes"]
[39210,"Jackson","Hinds County",{"$f":"IF(E302=\"No\",\"Yes\",\"No\")","v":"Yes"},"No"]
[39211,"Jackson","Hinds County",{"$f":"IF(E303=\"No\",\"Yes\",\"No\")","v":"Yes"},"No"]
[39212,"Jackson","Hinds County",{"$f":"IF(E304=\"No\",\"Yes\",\"No\")","v":"Yes"},"No"]
[39213,"Jackson","Hinds County","Yes","Yes"]
[39215,"Jackson","Hinds County",{"$f":"IF(E306=\"No\",\"Yes\",\"No\")","v":"Yes"},"No"]
[39216,"Jackson","Hinds County","Yes","Yes"]
[39217,"Jackson","Hinds County",{"$f":"IF(E308=\"No\",\"Yes\",\"No\")","v":"Yes"},"No"]
[39218,"Richland, Jackson","Rankin County",{"$f":"IF(E309=\"No\",\"Yes\",\"No\")","v":"Yes"},"No"]
[39225,"Jackson","Hinds County",{"$f":"IF(E310=\"No\",\"Yes\",\"No\")","v":"Yes"},"No"]
[39232,"Flowood, Jackson","Rankin County",{"$f":"IF(E311=\"No\",\"Yes\",\"No\")","v":"Yes"},"No"]
[39235,"Jackson","Hinds County","Error","No"]
[39236,"Jackson","Hinds County",{"$f":"IF(E313=\"No\",\"Yes\",\"No\")","v":"Yes"},"No"]
[39269,"Jackson","Hinds County","Yes","No"]
[39272,"Byram, Jackson","Hinds County","Yes","No"]
[39282,"Jackson","Hinds County","Yes","No"]
[39283,"Jackson","Hinds County","Yes","No"]
[39284,"Jackson","Hinds County","Yes","No"]
[39286,"Jackson","Hinds County","Yes","No"]
[39288,"Pearl, Jackson","Rankin County","Yes","No"]
[39296,"Jackson","Hinds County","Yes","No"]
[39298,"Jackson","Hinds County","Yes","No"]
[39301,"Meridian","Lauderdale County","No","Yes"]
[39302,"Meridian","Lauderdale County","Yes","No"]
[39305,"Meridian","Lauderdale County","Yes","No"]
[39307,"Meridian","Lauderdale County","No","Yes"]
[39309,"Meridian, Nas Meridian, Naval Air Sta Meridian","Lauderdale County","Yes","No"]
[39320,"Bailey","Lauderdale County","Yes","No"]
[39322,"Buckatunna","Wayne County","Yes","No"]
[39323,"Chunky","Newton County","Yes","No"]
[39324,"Clara","Wayne County","Yes","No"]
[39325,"Collinsville","Lauderdale County","Yes","No"]
[39326,"Daleville","Lauderdale County","Yes","No"]
[39327,"Decatur","Newton County","Yes","No"]
[39328,"De Kalb","Kemper County","Yes","No"]
[39330,"Enterprise","Clarke County","Yes","No"]
[39332,"Hickory","Newton County","Yes","No"]
[39335,"Lauderdale","Lauderdale County","Yes","No"]
[39336,"Lawrence","Newton County","Yes","No"]
[39337,"Little Rock","Newton County","Yes","No"]
[39338,"Louin","Jasper County","Yes","No"]
[39339,"Louisville","Winston County","Yes","Yes"]
[39341,"Macon, Prairie Point","Noxubee County",{"$f":"IF(E343=\"No\",\"Yes\",\"No\")","v":"No"},"Yes"]
[39342,"Marion","Lauderdale County","Yes","No"]
[39345,"Newton","Newton County","Yes","No"]
[39346,"Noxapater","Winston County","Yes","No"]
[39347,"Pachuta","Jasper County","Yes","No"]
[39348,"Paulding","Jasper County","Yes","No"]
[39350,"Philadelphia, Choctaw","Neshoba County","Yes","No"]
[39352,"Porterville","Kemper County","Yes","No"]
[39354,"Preston","Kemper County","Yes","No"]
[39355,"Quitman","Clarke County","Yes","Yes"]
[39356,"Rose Hill","Jasper County",{"$f":"IF(E353=\"No\",\"Yes\",\"No\")","v":"Yes"},"No"]
[39358,"Scooba","Kemper County","Yes","No"]
[39359,"Sebastopol","Scott County","Yes","No"]
[39360,"Shubuta, Matherville","Clarke County","Yes","No"]
[39361,"Shuqualak","Noxubee County","Yes","No"]
[39362,"State Line","Wayne County","Yes","No"]
[39363,"Stonewall","Clarke County","Yes","No"]
[39364,"Toomsuba","Lauderdale County","Yes","No"]
[39365,"Union","Neshoba County","Yes","No"]
[39366,"Vossburg","Jasper County","Yes","No"]
[39367,"Waynesboro","Wayne County","Yes","No"]
[39401,"Hattiesburg","Forrest County","No","Yes"]
[39402,"Hattiesburg","Lamar County","Yes","Yes"]
[39403,"Hattiesburg","Forrest County",{"$f":"IF(E366=\"No\",\"Yes\",\"No\")","v":"Yes"},"No"]
[39404,"Hattiesburg","Forrest County","Yes","No"]
[39406,"Hattiesburg","Forrest County","Yes","No"]
[39407,"Hattiesburg","Forrest County","Yes","No"]
[39421,"Bassfield","Jefferson Davis County","Yes","No"]
[39422,"Bay Springs","Jasper County","Yes","No"]
[39423,"Beaumont","Perry County","Yes","Yes"]
[39425,"Brooklyn","Forrest County",{"$f":"IF(E373=\"No\",\"Yes\",\"No\")","v":"Yes"},"No"]
[39426,"Carriere","Pearl River County",{"$f":"IF(E374=\"No\",\"Yes\",\"No\")","v":"Yes"},"No"]
[39427,"Carson","Jefferson Davis County",{"$f":"IF(E375=\"No\",\"Yes\",\"No\")","v":"Yes"},"No"]
[39428,"Collins","Covington County","Yes","Yes"]
[39429,"Columbia","Marion County",{"$f":"IF(E377=\"No\",\"Yes\",\"No\")","v":"Yes"},"No"]
[39436,"Eastabuchie","Jones County",{"$f":"IF(E378=\"No\",\"Yes\",\"No\")","v":"Yes"},"No"]
[39437,"Ellisville","Jones County",{"$f":"IF(E379=\"No\",\"Yes\",\"No\")","v":"Yes"},"No"]
[39439,"Heidelberg","Jasper County",{"$f":"IF(E380=\"No\",\"Yes\",\"No\")","v":"Yes"},"No"]
[39440,"Laurel","Jones County",{"$f":"IF(E381=\"No\",\"Yes\",\"No\")","v":"No"},"Yes"]
[39443,"Laurel","Jones County","Yes","Yes"]
[39451,"Leakesville","Greene County","Yes","Yes"]
[39452,"Lucedale, Agricola","George County",{"$f":"IF(E384=\"No\",\"Yes\",\"No\")","v":"Yes"},"No"]
[39455,"Lumberton","Lamar County","Yes","No"]
[39456,"Mc Lain, Benndale, Leaf","Greene County","Yes","No"]
[39457,"Mc Neill","Pearl River County","Yes","No"]
[39459,"Moselle","Jones County","Yes","No"]
[39460,"Moss","Jasper County","Yes","No"]
[39461,"Neely","Greene County","Yes","No"]
[39462,"New Augusta","Perry County","Yes","No"]
[39463,"Nicholson","Pearl River County","Yes","No"]
[39464,"Ovett","Jones County","Yes","No"]
[39465,"Petal","Forrest County","Yes","No"]
[39466,"Picayune","Pearl River County","Yes","No"]
[39470,"Poplarville","Pearl River County","Yes","No"]
[39474,"Prentiss","Jefferson Davis County","Yes","No"]
[39475,"Purvis","Lamar County","Yes","No"]
[39476,"Richton","Perry County","Yes","No"]
[39477,"Sandersville","Jones County","Yes","No"]
[39478,"Sandy Hook","Marion County","Yes","No"]
[39479,"Seminary","Covington County","Yes","No"]
[39480,"Soso","Jones County","Yes","No"]
[39481,"Stringer","Jasper County","Yes","No"]
[39482,"Sumrall","Lamar County","Yes","No"]
[39483,"Foxworth, Morgantown","Marion County","Yes","No"]
[39501,"Gulfport","Harrison County","No","Yes"]
[39502,"Gulfport","Harrison County","Yes","No"]
[39503,"Gulfport","Harrison County","Yes","No"]
[39505,"Gulfport","Harrison County","Yes","No"]
[39506,"Gulfport","Harrison County","Yes","No"]
[39507,"Gulfport","Harrison County","Yes","No"]
[39520,"Bay Saint Louis, Bay St Louis, Stennis Ctr, Stennis Space...","Hancock County","Yes","No"]
[39522,"Stennis Space Center, Bay Saint Louis, Bay St Louis, Stennis C...","Hancock County","Yes","No"]
[39525,"Diamondhead, Bay Saint Louis, Bay St Louis","Hancock County","Yes","No"]
[39529,"Stennis Space Center, Bay Saint Louis, Bay St Louis, Stennis C...","Hancock County",{"$f":"IF(E416=\"No\",\"Yes\",\"No\")","v":"Yes"},"No"]
[39530,"Biloxi","Harrison County","Yes","No"]
[39531,"Biloxi","Harrison County","Yes","No"]
[39532,"Biloxi","Harrison County","Yes","No"]
[39533,"Biloxi","Harrison County","Yes","No"]
[39534,"Biloxi, Keesler Afb","Harrison County","Yes","No"]
[39535,"Biloxi","Harrison County","Yes","No"]
[39540,"Diberville, Biloxi","Harrison County","Yes","No"]
[39552,"Escatawpa","Jackson County","Yes","No"]
[39553,"Gautier","Jackson County","Yes","No"]
[39555,"Hurley","Jackson County","Yes","No"]
[39556,"Kiln","Hancock County","Yes","No"]
[39558,"Lakeshore, Clermont Harbor, Clermont Hbr","Hancock County","Yes","No"]
[39560,"Long Beach","Harrison County","Yes","No"]
[39561,"Mc Henry","Stone County","Yes","No"]
[39562,"Moss Point","Jackson County","Yes","No"]
[39563,"Moss Point, Kreole, Pascagoula","Jackson County","Yes","No"]
[39564,"Ocean Springs","Jackson County","Yes","No"]
[39565,"Vancleave, Ocean Springs","Jackson County","Yes","No"]
[39566,"Ocean Springs","Jackson County","Yes","No"]
[39567,"Pascagoula","Jackson County","Yes","No"]
[39569,"Pascagoula","Jackson County","Yes","No"]
[39571,"Pass Christian, Pass Chris, Pass Christin","Harrison County","Yes","No"]
[39572,"Pearlington","Hancock County","Yes","No"]
[39573,"Perkinston","Stone County","Yes","No"]
[39574,"Saucier","Harrison County","Yes","No"]
[39576,"Waveland","Hancock County","Yes","No"]
[39577,"Wiggins","Stone County","Yes","Yes"]
[39581,"Pascagoula","Jackson County",{"$f":"IF(E444=\"No\",\"Yes\",\"No\")","v":"Yes"},"No"]
[39595,"Pascagoula","Jackson County","Yes","No"]
[39601,"Brookhaven","Lincoln County","Yes","No"]
[39602,"Brookhaven","Lincoln County","Yes","No"]
[39603,"Brookhaven","Lincoln County","Yes","No"]
[39629,"Bogue Chitto","Lincoln County","Yes","No"]
[39630,"Bude","Franklin County","Yes","No"]
[39631,"Centreville","Wilkinson County","Yes","No"]
[39632,"Chatawa","Pike County","Yes","No"]
[39633,"Crosby","Wilkinson County","Yes","No"]
[39635,"Fernwood","Pike County","Yes","No"]
[39638,"Gloster","Amite County","Yes","No"]
[39641,"Jayess","Walthall County","Yes","No"]
[39643,"Kokomo","Marion County","Yes","No"]
[39645,"Liberty","Amite County","Yes","No"]
[39647,"Mc Call Creek","Franklin County","Yes","No"]
[39648,"Mccomb","Pike County","Yes","No"]
[39649,"Mccomb","Pike County","Yes","No"]
[39652,"Magnolia","Pike County","Yes","No"]
[39653,"Meadville","Franklin County","Yes","No"]
[39654,"Monticello","Lawrence County","Yes","No"]
[39656,"Oak Vale","Jefferson Davis County","Yes","No"]
[39657,"Osyka","Pike County","Yes","No"]
[39661,"Roxie","Franklin County","Yes","No"]
[39662,"Ruth","Lincoln County","Yes","No"]
[39663,"Silver Creek","Lawrence County","Yes","No"]
[39664,"Smithdale","Amite County","Yes","No"]
[39665,"Sontag","Lawrence County","Yes","No"]
[39666,"Summit","Pike County","Yes","No"]
[39667,"Tylertown","Walthall County","Yes","No"]
[39668,"Union Church","Jefferson County","Yes","No"]
[39669,"Woodville","Wilkinson County","Yes","No"]
[39701,"Columbus, Columbus Afb","Lowndes County","No","Yes"]
[39702,"Columbus","Lowndes County","No","Yes"]
[39703,"Columbus","Lowndes County","Yes","No"]
[39704,"Columbus","Lowndes County","Yes","No"]
[39705,"Columbus","Lowndes County","Yes","No"]
[39710,"Columbus","Lowndes County","Yes","No"]
[39730,"Aberdeen","Monroe County","Yes","No"]
[39735,"Ackerman, Reform","Choctaw County","Yes","Yes"]
[39736,"Artesia","Lowndes County",{"$f":"IF(E484=\"No\",\"Yes\",\"No\")","v":"Yes"},"No"]
[39737,"Bellefontaine","Webster County","Yes","No"]
[39739,"Brooksville, Bigbee Valley","Noxubee County","Yes","No"]
[39740,"Caledonia","Lowndes County","Yes","No"]
[39741,"Cedarbluff","Clay County","Yes","No"]
[39743,"Crawford","Lowndes County","Yes","No"]
[39744,"Eupora, Tomnolen","Webster County","Yes","No"]
[39745,"French Camp","Choctaw County","Yes","No"]
[39746,"Hamilton","Monroe County","Yes","No"]
[39747,"Kilmichael","Montgomery County","Yes","No"]
[39750,"Maben","Webster County","Yes","No"]
[39751,"Mantee","Webster County","Yes","No"]
[39752,"Mathiston","Webster County","Yes","No"]
[39753,"Mayhew","Lowndes County","Yes","No"]
[39755,"Pheba","Clay County","Yes","No"]
[39756,"Prairie","Clay County","Yes","No"]
[39759,"Starkville","Oktibbeha County","Yes","No"]
[39760,"Starkville","Oktibbeha County","Yes","No"]
[39762,"Mississippi State, Ms State Univ","Oktibbeha County","Yes","No"]
[39766,"Steens","Lowndes County","Yes","No"]
[39767,"Stewart","Webster County","Yes","No"]
[39769,"Sturgis","Oktibbeha County","Yes","No"]
[39771,"Walthall","Webster County","Yes","No"]
[39772,"Weir","Choctaw County","Yes","No"]
[39773,"West Point","Clay County","No","Yes"]
[39776,"Woodland","Chickasaw County","Yes","No"]